Cogmind - Beta 16 @@@ ROGUE MODE // 2025.10.29 @ 22:35:28 Player: chebyrekser Result: Destroyed self with Smartbomb Launcher Performance ------------- Evolutions (8) 4000 Regions Visited (33) 6600 Robots Destroyed (283) 1415 Value Destroyed (8550) 8550 Prototype IDs (67) 1340 Alien Tech Used (3) 600 Bonus (4011) 4011 TOTAL SCORE: 26516 Bonus ------- High Alert Combat Kills 227 Follower Combat Kills 1522 Entered Garrisons 200 Met Zhirov 300 MAIN.C Attacked Warlord 500 Warlord Defense Kills 368 Built Enhanced Grunts 300 Met R17 at Cetus 500 Met R17 at Research 2000 Friendly Fire -1906 Cogmind --------- Core Integrity 0/1450 Matter 5/300 Energy 64/100 System Corruption 3% Temperature Cool (0) Movement Core (150) Ox2 Location -2/Garrison Parts ------- > --- POWER (2) -------- (None) > --- PROPULSION (8) --- (None) > --- UTILITY (10) ----- Advanced Signal Interpreter Core Analyzer System Mapper > --- WEAPON (3) ------- Smartbomb Launcher > --- INVENTORY (5) ---- Advanced Sensor Array Weapon Mount Subatomic Replicator Peak State ------------ > --- POWER ------------ Micro Antimatter Reactor Graviton Reactor > --- PROPULSION ------- Nuclear Pulse Array Q-thruster Electron Diverter Cooled Impulse Thruster Cooled Impulse Thruster Impulse Thruster Array > --- UTILITY ---------- Medium Storage Unit Advanced Gravity Neutralizer Advanced Sensor Array Advanced Signal Interpreter Heavy Regenerative Plating Advanced Hacking Suite Experimental Hacking Suite System Mapper Power Bank > --- WEAPON ----------- Tri-rail Accelerator Plasma Sword > --- INVENTORY -------- Cooled Cesium-ion Thruster Weapon Mount Core Analyzer Advanced Transmission Jammer ECM Suite Graphene Brace Subatomic Replicator Terrabomb Smartbomb Launcher [Rating: 175] Favorites ----------- Power Ion Engine Engine Ion Engine Power Core Fusion Compressor Reactor Micro Antimatter Reactor Propulsion Improved Flight Unit Treads Improved Treads Wheel Armored Wheel Flight Unit Improved Flight Unit Utility Hacking Suite Device Advanced Sensor Array Storage Medium Storage Unit Processor Advanced Signal Interpreter Hackware Hacking Suite Protection Improved Propulsion Shielding Weapon Improved Light Cannon Energy Gun Heavy Laser Energy Cannon Heavy Particle Cannon Ballistic Gun Assault Rifle Ballistic Cannon Improved Light Cannon Launcher Grenade Launcher Special Weapon Mining Laser Impact Weapon Powered Hammer Slashing Weapon Great Axe Build | -11 -10 -10 -8 -7 -7 -7 -7 -6 -6 -6 -6 -6 -6 -6 -6 -5 -5 -5 -5 -5 -5 -4 -4 -4 -4 -4 -3 -3 -3 -2 -2 -2 -2 ------- Run | Yrd Mat Sub Mat Fac Low Low Zio Pro Fac Was Fac Ext Cet Arc Hub Fac Was Fac Upp Upp Zhi Pro Fac Upp Upp War Pro Res Tes Res Qua Frg Gar Slots Evolved 16 | . . . 4 2 . . . . 2 . . . . . . 2 . . . . . . 2 . . . . 2 . 2 . . . Power 1 | . . . . . . . . . . . . . . . . . . . . . . . . . . . . . . 1 . . . Propulsion 6 | . . . 2 2 . . . . . . . . . . . . . . . . . . 1 . . . . 1 . . . . . Utility 8 | . . . 2 . . . . . 2 . . . . . . 2 . . . . . . . . . . . 1 . 1 . . . Weapon 1 | . . . . . . . . . . . . . . . . . . . . . . . 1 . . . . . . . . . . Parts Attached 175 | 7 12 7 27 21 1 . 2 . 9 . 2 3 4 3 3 10 1 8 1 . 4 . 6 1 . 6 2 14 6 4 6 5 . Power 19 | 1 1 1 3 . . . . . 1 . . 2 . . . 2 . 2 . . . . 1 . . . . 1 1 2 1 . . Engine 10 | 1 1 1 3 . . . . . 1 . . . . . . 1 . . . . . . . . . . . . . 2 . . . Core 5 | . . . . . . . . . . . . 2 . . . 1 . 2 . . . . . . . . . . . . . . . Reactor 4 | . . . . . . . . . . . . . . . . . . . . . . . 1 . . . . 1 1 . 1 . . Propulsion 35 | 2 3 3 8 3 . . . . . . 1 . . . 1 1 . . . . 1 . 1 . . 1 . 7 . 1 2 . . Treads 12 | 1 2 2 7 . . . . . . . . . . . . . . . . . . . . . . . . . . . . . . Leg . | . . . . . . . . . . . . . . . . . . . . . . . . . . . . . . . . . . Wheel 4 | 1 1 1 1 . . . . . . . . . . . . . . . . . . . . . . . . . . . . . . Hover . | . . . . . . . . . . . . . . . . . . . . . . . . . . . . . . . . . . Flight 19 | . . . . 3 . . . . . . 1 . . . 1 1 . . . . 1 . 1 . . 1 . 7 . 1 2 . . Utility 77 | 2 3 1 7 13 1 . 2 . 5 . 1 . 4 2 1 5 1 4 1 . 3 . 3 1 . 4 1 4 3 1 2 2 . Device 29 | 1 . . 3 1 1 . 1 . 2 . . . 1 2 1 3 . 1 1 . 1 . 2 . . 2 1 2 2 . . 1 . Storage 9 | 1 2 . 1 2 . . . . . . . . . . . . . . . . 1 . . 1 . . . 1 . . . . . Processor 7 | . . . . 2 . . . . 2 . . . . . . . 1 . . . . . . . . . . . . . 1 1 . Hackware 13 | . . . . 4 . . 1 . . . . . 1 . . 1 . 2 . . . . 1 . . . . 1 . 1 1 . . Protection 19 | . 1 1 3 4 . . . . 1 . 1 . 2 . . 1 . 1 . . 1 . . . . 2 . . 1 . . . . Artifact . | . . . . . . . . . . . . . . . . . . . . . . . . . . . . . . . . . . Weapon 44 | 2 5 2 9 5 . . . . 3 . . 1 . 1 1 2 . 2 . . . . 1 . . 1 1 2 2 . 1 3 . Energy Gun 1 | . . . 1 . . . . . . . . . . . . . . . . . . . . . . . . . . . . . . Energy Cannon 6 | . . . 2 . . . . . . . . . . . . . . . . . . . . . . 1 . 1 1 . . 1 . Ballistic Gun 11 | 2 1 . 1 . . . . . 2 . . . . 1 1 . . . . . . . . . . . . . 1 . . 2 . Ballistic Cannon 10 | . 2 1 3 . . . . . . . . 1 . . . . . 1 . . . . . . . . . 1 . . 1 . . Launcher 7 | . 1 1 1 1 . . . . . . . . . . . . . 1 . . . . 1 . . . 1 . . . . . . Special Weapon 2 | . 1 . . . . . . . 1 . . . . . . . . . . . . . . . . . . . . . . . . Impact Weapon 4 | . . . . 3 . . . . . . . . . . . 1 . . . . . . . . . . . . . . . . . Slashing Weapon 3 | . . . 1 1 . . . . . . . . . . . 1 . . . . . . . . . . . . . . . . . Piercing Weapon . | . . . . . . . . . . . . . . . . . . . . . . . . . . . . . . . . . . Special Melee Weapon . | . . . . . . . . . . . . . . . . . . . . . . . . . . . . . . . . . . Unidentified Prototypes 28 | . . . 2 1 . . . . 1 . . . 2 1 1 1 . . . . 4 . . . . 3 . 3 4 1 . 3 1 Parts Lost 31 | . . 2 5 1 . . . . . . . 1 1 . . 1 . 1 . . . . 1 . . 1 . 1 . 2 3 7 4 Power 4 | . . . . . . . . . . . . . . . . 1 . . . . . . . . . 1 . . . 1 . 1 . Propulsion 8 | . . . 1 . . . . . . . . . . . . . . . . . . . . . . . . . . 1 3 2 1 Utility 13 | . . 1 2 1 . . . . . . . 1 1 . . . . 1 . . . . 1 . . . . 1 . . . 2 2 Weapon 6 | . . 1 2 . . . . . . . . . . . . . . . . . . . . . . . . . . . . 2 1 Highest Loss Streak 9 | . . 2 2 1 . . . . . . . 1 1 . . 1 . 1 . . . . 1 . . 1 . 1 . 1 2 5 9 To Critical Strikes . | . . . . . . . . . . . . . . . . . . . . . . . . . . . . . . . . . . Average Backups 14 | 6 21 23 21 10 10 10 10 10 10 10 9 9 10 10 10 9 10 9 9 10 9 10 9 9 9 8 8 8 9 7 8 8 5 Power . | . 1 . . 1 1 1 1 1 1 1 1 1 1 1 1 . . . 1 1 1 1 . . . . . . 1 1 . . . Propulsion 3 | 3 5 6 5 1 1 1 1 1 1 1 1 2 2 2 2 1 . . 1 1 . . . 1 1 1 2 1 . . . . . Utility 5 | . 6 5 7 4 6 6 6 6 5 5 4 3 3 3 3 4 6 5 5 5 5 5 5 5 5 4 4 4 5 5 5 4 3 Weapon 3 | 1 7 7 6 2 1 1 1 1 1 2 1 2 2 3 3 3 2 2 1 2 1 2 1 1 1 1 . 1 1 1 1 1 . Tool/Special . | . . . . . . . . . . . . . . . . . . . . . . . . . . . . . . . . . . Unused Backups 48 | . 8 3 6 5 . . 1 . 3 . 1 . 1 . . 4 . 2 1 1 . . 2 . . 2 . 4 2 . 1 . 1 Power 6 | . . 1 . . . . . . 1 . . . . . . . . 1 . . . . 1 . . . . 1 . . 1 . . Propulsion 10 | . 5 1 1 . . . . . . . . . . . . 2 . . . . . . . . . . . 1 . . . . . Utility 23 | . 3 . 2 3 . . 1 . 2 . 1 . 1 . . 2 . . 1 1 . . . . . 2 . 2 2 . . . . Weapon 6 | . . 1 2 1 . . . . . . . . . . . . . 1 . . . . 1 . . . . . . . . . . Tool/Special 3 | . . . 1 1 . . . . . . . . . . . . . . . . . . . . . . . . . . . . 1 Average Slot Usage (%) 85 | . 100 99 91 75 81 81 81 81 82 83 83 82 81 81 81 75 77 77 73 77 73 77 73 79 79 78 77 79 85 79 77 65 30 Engine 5 | . 14 14 9 6 6 6 6 6 5 5 5 3 . . . . 4 . . . . . . . . . . . . . . . . Core 2 | . . . . . . . . . . . . 1 5 5 5 7 4 11 13 13 13 13 10 8 8 7 4 4 4 1 . . . Treads 9 | . 14 14 29 . . . . . . . . . . . . . . . . . . . . . . . . . . . . . . Wheel 3 | . 14 14 4 . . . . . . . . . . . . . . . . . . . . . . . . . . . . . . Flight 10 | . . . . 17 18 18 18 18 16 16 16 16 17 17 17 13 13 13 13 13 13 13 14 16 16 16 17 21 30 28 25 17 5 Device 11 | . 2 8 12 6 11 12 12 14 11 11 11 6 9 11 13 17 13 17 19 22 21 22 18 16 16 16 17 16 16 12 12 12 6 Storage 7 | . 14 14 9 6 6 6 6 6 5 5 5 5 5 5 5 4 4 4 4 4 4 4 4 4 4 4 4 4 4 4 4 4 2 Processor 2 | . . . . . . . . . 4 5 5 5 5 5 5 4 7 4 4 4 4 4 4 4 4 4 4 4 4 4 4 5 8 Hackware 8 | . . . . 14 18 18 18 18 16 16 16 16 17 17 17 13 13 13 13 13 13 13 12 12 12 12 13 12 8 11 11 8 4 Protection 6 | . 11 5 8 11 6 6 6 3 10 11 11 9 6 4 2 4 5 3 . . . . . 4 4 3 4 4 4 4 4 3 . Energy Cannon 1 | . . . 6 . . . . . . . . . . . . . . . . . . . . . . . . . . . . . . Ballistic Gun 1 | . 13 . 1 . . . . . . . . . . . . . . . . . . . . . . . . . . . . . 1 Ballistic Cannon 5 | . 9 21 7 . . . . . . . . . . . . . . 1 3 4 . 4 4 4 4 4 3 3 3 3 3 3 . Impact Weapon 1 | . . . . 3 6 6 6 6 4 5 5 4 5 5 5 4 4 2 . . . . . . . . . . . . . . . Slashing Weapon 2 | . . . . 5 6 6 6 5 4 5 5 4 5 4 4 4 4 2 . . . . 2 4 4 4 4 4 4 4 4 2 . Peak Build Rating 175 | 7 13 18 40 76 76 76 77 77 89 88 88 90 100 104 104 125 123 130 132 132 133 133 152 152 152 156 149 168 163 170 175 158 77 Average Rating 76 | 5 10 15 33 71 76 76 76 77 86 88 87 87 88 99 98 120 122 125 128 132 119 133 139 152 152 153 148 165 161 165 165 143 47 On Entrance 102 | . 7 13 17 40 76 76 76 77 77 88 88 88 87 100 100 96 121 123 127 132 132 133 133 152 152 152 149 149 162 159 168 158 77 Avg Prop Armor Cover (%) 10 | 3 9 10 12 . . . . 32 . . . . . . . 1 . . . . . . . . . 1 . . . . . . . Naked Turns . | . . . . . . . . . . . . . . . . . . . . . . . . . . . . . . . . . . Heaviest Build 115 | 13 94 96 115 112 34 33 33 33 38 34 34 37 37 37 35 50 36 51 50 50 53 50 57 57 57 57 56 62 74 77 77 69 18 Greatest Support 89 | 20 23 12 88 87 34 34 34 34 34 34 34 34 50 50 50 54 51 51 54 54 51 51 58 58 58 65 65 77 89 89 84 74 41 Greatest Overweight (x) 10 | . 7 7 9 1 . . . 10 1 . . 1 1 1 . 1 . . . . 1 . . . . . . . . 3 . 1 1 Average Overweight (x) . | . 4 7 4 . . . . . . . . . . . . . . . . . . . . . . . . . . . . . . Largest Inventory Capacity 25 | 8 25 25 25 25 10 10 10 10 10 10 10 10 10 10 10 10 10 10 10 10 10 10 10 10 10 10 10 10 10 10 10 10 10 Average Capacity 16 | 7 22 25 25 10 10 10 10 10 10 10 10 10 10 10 10 10 10 10 10 10 10 10 10 10 10 10 10 10 10 10 10 10 7 Most Carried 25 | 8 25 25 25 25 10 10 10 10 10 10 10 10 10 10 10 10 10 10 10 10 10 10 10 10 10 10 10 10 10 10 10 10 8 Average Carried 15 | 6 21 24 24 10 10 10 9 10 9 10 9 9 9 10 10 9 10 9 9 10 9 10 9 10 10 9 9 9 9 9 9 9 6 Final Capacity 25 | 8 25 25 25 10 10 10 10 10 10 10 10 10 10 10 10 10 10 10 10 10 10 10 10 10 10 10 10 10 10 10 10 10 5 Final Carried 25 | 8 25 25 25 10 10 10 10 10 10 10 10 10 10 10 10 10 10 10 10 10 10 10 10 10 10 10 10 10 10 10 9 8 3 Class Distribution -------------------- 43% | Mutant 27% | Hacker-Mutant 27% | Hacker-Sprinter Dominant Class ---------------- Mutant | -10/Materials Mutant | -10/Subcaves Mutant | -8/Materials Hacker-Mutant | -7/Factory Hacker-Mutant | -7/Lower Caves Hacker-Mutant | -7/Lower Caves Hacker-Mutant | -7/Zion Hacker-Mutant | -6/Proximity Caves Hacker-Mutant | -6/Factory Hacker-Mutant | -6/Waste Hacker-Mutant | -6/Factory Hacker-Mutant | -6/Extension Hacker-Mutant | -6/Cetus Hacker-Mutant | -6/Archives Hacker-Mutant | -6/Hub_04(d) Hacker-Sprinter | -5/Factory Hacker-Sprinter | -5/Waste Hacker-Sprinter | -5/Factory Hacker-Sprinter | -5/Upper Caves Hacker-Sprinter | -5/Upper Caves Hacker-Sprinter | -5/Zhirov Hacker-Sprinter | -4/Proximity Caves Hacker-Sprinter | -4/Factory Hacker-Sprinter | -4/Upper Caves Hacker-Sprinter | -4/Upper Caves Hacker-Sprinter | -4/Warlord Hacker-Sprinter | -3/Proximity Caves Hacker-Sprinter | -3/Research Hacker-Sprinter | -3/Testing Hacker-Sprinter | -2/Research Hacker-Sprinter | -2/Quarantine Hacker-Sprinter | -2/Protoforge Hacker-Mutant | -2/Garrison Resources | -11 -10 -10 -8 -7 -7 -7 -7 -6 -6 -6 -6 -6 -6 -6 -6 -5 -5 -5 -5 -5 -5 -4 -4 -4 -4 -4 -3 -3 -3 -2 -2 -2 -2 ----------- Run | Yrd Mat Sub Mat Fac Low Low Zio Pro Fac Was Fac Ext Cet Arc Hub Fac Was Fac Upp Upp Zhi Pro Fac Upp Upp War Pro Res Tes Res Qua Frg Gar Matter Collected 9600 | 375 528 470 1217 409 45 15 . 40 242 . 191 418 137 64 93 278 . 261 259 208 133 212 617 116 . 536 524 1045 365 548 234 20 . Remotely . | . . . . . . . . . . . . . . . . . . . . . . . . . . . . . . . . . . Salvage Created 12047 | 208 566 269 2183 570 76 34 . 36 407 . 271 656 93 213 234 689 . 270 72 246 267 56 549 256 . 154 464 1055 642 891 440 126 54 Parts 553 | 19 43 21 122 39 . 1 . 8 27 . 6 12 8 17 22 17 . 18 7 . 6 5 16 2 . 8 16 33 24 32 15 5 4 Haulers Intercepted 16 | . 2 . 6 1 . . . . 1 . 1 3 . . . . . 1 . . . . . . . . . 1 . . . . . Recyclers Shooed 8 | . 2 . 3 1 . . . . . . . . . . . . . . . . . . . . . . . 1 . 1 . . . Parts Field Recycled . | . . . . . . . . . . . . . . . . . . . . . . . . . . . . . . . . . . Retrieved Matter . | . . . . . . . . . . . . . . . . . . . . . . . . . . . . . . . . . . Parts Self-Destructed 48 | . . 10 . . . 1 . 11 . . . . . . . . . . 7 . 4 7 . . . . 8 . . . . . . Prevented 1 | . . . . . . . . . . . . . . . . . . . . 1 . . . . . . . . . . . . . Parts Restored . | . . . . . . . . . . . . . . . . . . . . . . . . . . . . . . . . . . Kills | -11 -10 -10 -8 -7 -7 -7 -7 -6 -6 -6 -6 -6 -6 -6 -6 -5 -5 -5 -5 -5 -5 -4 -4 -4 -4 -4 -3 -3 -3 -2 -2 -2 -2 ------- Run | Yrd Mat Sub Mat Fac Low Low Zio Pro Fac Was Fac Ext Cet Arc Hub Fac Was Fac Upp Upp Zhi Pro Fac Upp Upp War Pro Res Tes Res Qua Frg Gar Combat Hostiles Destroyed 143 | . 9 13 39 11 . . . 4 5 . . 6 . . 2 5 . 3 3 . . 4 6 . . 3 7 3 1 14 . 2 3 Melee 19 | . . . . 4 . . . . 2 . . 2 . . 2 5 . 1 3 . . . . . . . . . . . . . . Guns 10 | . 5 . 4 . . . . . . . . . . . . . . . . . . . . . . . . . . . . 1 . Cannons 58 | . 1 8 27 . . . . . . . . 2 . . . . . 2 . . . 4 6 . . 3 1 2 1 . . 1 . AOE 55 | . 3 5 8 7 . . . 4 3 . . 1 . . . . . . . . . . . . . . 6 1 . 14 . . 3 Classes Destroyed 21 | 3 6 2 2 1 . 1 . . . . . . . . . . . . . . . . . 1 . 1 2 . . . . 2 . Worker 26 | 2 1 . 3 2 . . . . 1 . . . . . 3 5 . 3 . . . . . . . . . 2 1 2 . 1 . Builder 11 | . 1 . 4 1 . . . . . . . 1 . . . . . . . . . . . . . . . 1 2 1 . . . Tunneler 8 | 5 2 . . 1 . . . . . . . . . . . . . . . . . . . . . . . . . . . . . Hauler 16 | . 2 . 6 1 . . . . 1 . 1 3 . . . . . 1 . . . . . . . . . 1 . . . . . Recycler 32 | 1 3 . 4 2 . . . . 1 . 1 1 . . . 2 . . . . . . 2 . . . . 5 3 4 3 . . Minesweeper 1 | . . . . . . 1 . . . . . . . . . . . . . . . . . . . . . . . . . . . Mechanic 2 | . 1 . . . . . . . . . . . . . . . . . . . . . 1 . . . . . . . . . . Operator 16 | . . . 4 1 . . . . 1 . . . . 6 1 . . . . . . . . . . . . 2 . 1 . . . Drone 1 | . . . . . . . . . . . . . . . . . . . . . . . . . . . . . . . . 1 . Watcher 28 | . 2 . 5 1 . . . . 2 . . 2 1 . 2 4 . 1 . . . . 2 . . . . 1 1 1 2 1 . Swarmer 52 | . 6 3 2 7 . . . 4 5 . . . . . . . . 1 3 . . 4 . . . . . . . 14 . . 3 Grunt 48 | . 3 . 29 . . . . . . . . 2 . . . 2 . . . . . . 4 . . 1 3 3 1 . . . . Brawler 1 | . . . 1 . . . . . . . . . . . . . . . . . . . . . . . . . . . . . . Duelist 1 | . . . . . . . . . . . . . . . . . . . . . . . . . . . 1 . . . . . . Protector 1 | . . . . . . . . . . . . . . . . . . . . . . . . . . 1 . . . . . . . Sentry 10 | . . 1 7 . . . . . . . . 2 . . . . . . . . . . . . . . . . . . . . . Hunter 2 | . . . . . . . . . . . . . . . . . . . . . . . . . . . 2 . . . . . . Programmer 17 | . . . . 4 . . . . . . . 2 . . 2 3 . 2 . . . . 2 . . 1 1 . . . . . . Decapitator 1 | . . . . . . . . . . . . . . . . . . . . . . . . . . . . . . . . 1 . Subdweller 9 | . . 9 . . . . . . . . . . . . . . . . . . . . . . . . . . . . . . . Packrat 8 | . . . . . 1 . . . . . . . . . . . . . . 4 . . . 1 . . 2 . . . . . . Samaritan 2 | . . . . . . . . . . . . . . . . . . . . . . . . 1 . . 1 . . . . . . Best Kill Streak 12 | 5 4 3 12 5 . 1 . 4 3 . 1 3 1 3 2 2 . 2 3 . . 4 2 1 . 2 4 2 7 7 2 2 3 Combat Bots Only 6 | . 3 3 6 4 . . . 4 3 . . 1 . . 1 2 . 2 3 . . 4 2 . . 2 4 1 1 6 . 2 3 Max Kills in Single Turn 5 | 2 4 2 5 3 1 1 . 2 2 . 1 1 1 1 1 1 . 1 1 1 . 1 1 1 . 1 3 1 1 5 1 1 2 Gunslinging . | . . . . . . . . . . . . . . . . . . . . . . . . . . . . . . . . . . Exploded 4 | . 3 2 4 3 . . . 2 2 . . 1 . . . . . . . . . . . . . . 3 1 . 4 . . 2 Melee 1 | . . . . 1 . . . . 1 . . 1 . . 1 1 . 1 1 . . . . . . . . . . . . . . Uniques/NPCs Destroyed 1 | . . . . . . . . . . . . . 1 . . . . . . . . . . . . . . . . . . . . A7 (-6/Cetus) Combat | -11 -10 -10 -8 -7 -7 -7 -7 -6 -6 -6 -6 -6 -6 -6 -6 -5 -5 -5 -5 -5 -5 -4 -4 -4 -4 -4 -3 -3 -3 -2 -2 -2 -2 -------- Run | Yrd Mat Sub Mat Fac Low Low Zio Pro Fac Was Fac Ext Cet Arc Hub Fac Was Fac Upp Upp Zhi Pro Fac Upp Upp War Pro Res Tes Res Qua Frg Gar Hostile Shots Fired 973 | . 21 56 183 58 . . . 7 26 . 9 81 6 1 18 75 . 18 16 6 . 19 30 . . 7 3 14 19 39 13 147 101 Missed 389 | . 1 13 46 28 . . . 3 12 . 8 45 . . 8 32 . 3 7 4 . 6 13 . . 6 2 5 11 18 7 68 43 Hits 584 | . 20 43 137 30 . . . 4 14 . 1 36 6 1 10 43 . 15 9 2 . 13 17 . . 1 1 9 8 21 6 79 58 Melee 7 | . . . . . . . . . . . . . . . . . . . . . . . . . . . . . . . . 7 . Projectile 577 | . 20 43 137 30 . . . 4 14 . 1 36 6 1 10 43 . 15 9 2 . 13 17 . . 1 1 9 8 21 6 72 58 AOE 4 | . . 3 . . . . . . . . . . . . . . . . . . . . . . . 1 . . . . . . . Critical Strikes 30 | . . 2 5 1 . . . . . . . 1 2 . 1 . . 1 . . . . 2 . . . . 1 1 2 . 7 4 Actively Blocked 13 | . . 1 . . . . . . . . . . 2 . . . . 1 . . . . . . . . . . . . . 5 4 Part Disruptions 1 | . . . . . . . . . . . . . . . 1 . . . . . . . . . . . . . . . . . . Damage Taken 11356 | . 186 879 2150 514 . . . 63 233 . 12 341 186 26 163 835 . 298 131 47 . 202 340 . . 65 22 265 161 546 252 1982 1457 Core 2049 | . 8 191 252 20 . . . . 18 . . . 24 . . 82 . . . . . . 20 . . . . . 17 24 . 238 1155 Absorbed by Shields 81 | . . . . . . . . . . . . 39 25 . . 17 . . . . . . . . . . . . . . . . . Redirected to Shielding 508 | . 1 26 . 173 . . . . 63 . 7 74 39 . . . . 125 . . . . . . . . . . . . . . . Ignored by Resistances 24 | . . . 24 . . . . . . . . . . . . . . . . . . . . . . . . . . . . . . Regen/Repaired (Parts) 1036 | . . . 288 . . . . . . . . 70 . . . . . 362 . . . . . . . 21 . . . 181 36 78 . Core Remaining (%) 81 | 100 . 20 54 . . . . 97 . . . . . . 95 . . . . . . 91 . . . . 98 . 98 . . . . Volleys Fired 576 | 18 40 74 174 5 . . . 2 7 . . 18 1 1 . 1 . 20 5 14 . 8 46 5 . 31 14 26 20 17 18 7 4 Largest 2 | 2 2 2 2 1 . . . 1 1 . . 1 1 1 . 1 . 1 1 1 . 1 1 1 . 1 1 1 1 1 1 2 1 Hottest 172 | 40 100 100 115 40 . . . 39 39 . . 39 33 35 . 39 . 60 60 60 . 60 60 60 . 100 60 60 60 60 60 172 46 Shots Fired 788 | 35 76 106 296 5 . . . 2 7 . . 18 1 1 . 1 . 20 5 14 . 9 46 5 . 31 14 26 20 17 18 11 4 Gun 140 | 35 60 . 36 . . . . . 4 . . . . 1 . . . . . . . . . . . . . . . . . 4 . Cannon 579 | . 12 78 252 1 . . . . . . . 16 1 . . . . 20 5 14 . 9 46 5 . 31 8 25 20 11 18 7 . Launcher 45 | . 3 5 8 4 . . . 2 3 . . 2 . . . 1 . . . . . . . . . . 6 1 . 6 . . 4 Special 24 | . 1 23 . . . . . . . . . . . . . . . . . . . . . . . . . . . . . . . Kinetic 586 | 35 72 78 160 1 . . . . 4 . . 16 1 1 . . . 20 5 14 . 9 46 5 . 30 8 25 20 11 18 7 . Thermal 156 | . 1 23 128 . . . . . . . . . . . . . . . . . . . . . . . . . . . . 4 . Explosive 45 | . 3 5 8 4 . . . 2 3 . . 2 . . . 1 . . . . . . . . . . 6 1 . 6 . . 4 Electromagnetic . | . . . . . . . . . . . . . . . . . . . . . . . . . . . . . . . . . . Entropic 1 | . . . . . . . . . . . . . . . . . . . . . . . . . . 1 . . . . . . . Robot Hit Streak 16 | 5 12 9 11 3 . . . . 4 . . 2 . 2 . . . 5 4 3 . 5 7 . . 8 3 16 5 . . 2 . Robot Miss Streak 6 | 2 4 3 4 . . . . . 1 . . 3 . . . . . 4 3 3 . 3 6 . . 4 . 2 1 . . 1 . Penetration Max . | . . . . . . . . . . . . . . . . . . . . . . . . . . . . . . . . . . Secondary Targets . | . . . . . . . . . . . . . . . . . . . . . . . . . . . . . . . . . . Shots Hit Robots 619 | 23 48 37 160 31 1 1 . 1 14 . 4 26 8 14 13 46 . 14 8 5 6 7 38 5 . 17 4 40 17 13 10 8 . Core Hits 385 | 9 28 23 105 12 . . . 7 11 . 1 9 3 3 7 14 . 9 4 5 4 3 19 . . 19 18 17 10 25 4 4 12 Critical Kills 2 | . . . . . . . . . 1 . . . . . . . . 1 . . . . . . . . . . . . . . . Critical Parts Destroyed 10 | . . . 1 . . . . . . . . 3 . 1 1 3 . 1 . . . . . . . . . . . . . . . Critical Strikes 31 | . . 4 3 . . . . . 2 . . 3 1 1 1 7 . 2 1 . . . . . . 2 1 2 . . . 1 . Destroy 1 | . . . 1 . . . . . . . . . . . . . . . . . . . . . . . . . . . . . . Blast 9 | . . 4 2 . . . . . . . . . . . . . . . . . . . . . . 2 1 . . . . . . Smash 12 | . . . . . . . . . 1 . . 3 1 1 1 3 . 2 . . . . . . . . . . . . . . . Sever 9 | . . . . . . . . . 1 . . . . . . 4 . . 1 . . . . . . . . 2 . . . 1 . Melee Attacks 617 | . . . 1 96 2 1 . 3 76 . 26 24 9 19 39 81 . 30 7 . 6 . 29 6 . . 8 55 24 41 25 9 . Impact 116 | . . . . 16 1 . . 1 29 . 4 18 2 4 7 27 . 7 . . . . . . . . . . . . . . . Slashing 501 | . . . 1 80 1 1 . 2 47 . 22 6 7 15 32 54 . 23 7 . 6 . 29 6 . . 8 55 24 41 25 9 . Piercing . | . . . . . . . . . . . . . . . . . . . . . . . . . . . . . . . . . . Sneak Attacks 88 | . . . . 10 1 1 . . 3 . 2 4 6 8 3 10 . 3 . . . . 3 3 . . 3 10 6 7 4 1 . Combat Hostiles 3 | . . . . 1 . . . . . . . 1 . . . 1 . . . . . . . . . . . . . . . . . Follow-up Attacks 20 | . . . . 2 . . . 1 2 . . 1 1 1 2 9 . 1 . . . . . . . . . . . . . . . Damage Inflicted 33764 | 314 849 1032 4620 2302 79 72 . 355 1008 . 273 1726 495 1114 737 2370 . 725 324 291 610 236 2004 511 . 1446 1387 2753 1243 2816 734 569 769 Guns 1311 | 314 527 . 354 . . . . . . . . . . 27 . . . . . . . . . . . . . . . . . 89 . Cannons 9674 | . 146 721 3216 . . . . . . . . 394 . . . . . 364 120 291 . 236 1347 . . 1446 74 767 358 . . 194 . Explosions 6616 | . 176 311 1050 650 . . . 302 197 . . 239 . . . . . . . . . . . . . . 999 134 . 1789 . . 769 Melee 16163 | . . . . 1652 79 72 . 53 811 . 273 1093 495 1087 737 2370 . 361 204 . 610 . 657 511 . . 314 1852 885 1027 734 286 . Ramming . | . . . . . . . . . . . . . . . . . . . . . . . . . . . . . . . . . . Kinetic 9296 | 314 673 721 2075 . . . . . . . . 394 . 27 . . . 364 120 291 . 236 1347 . . 1446 74 767 358 . . 89 . Thermal 1689 | . . . 1495 . . . . . . . . . . . . . . . . . . . . . . . . . . . . 194 . Explosive 6616 | . 176 311 1050 650 . . . 302 197 . . 239 . . . . . . . . . . . . . . 999 134 . 1789 . . 769 Electromagnetic . | . . . . . . . . . . . . . . . . . . . . . . . . . . . . . . . . . . Impact 2812 | . . . . 265 . . . . 341 . 86 941 93 35 48 878 . 125 . . . . . . . . . . . . . . . Slashing 13351 | . . . . 1387 79 72 . 53 470 . 187 152 402 1052 689 1492 . 236 204 . 610 . 657 511 . . 314 1852 885 1027 734 286 . Piercing . | . . . . . . . . . . . . . . . . . . . . . . . . . . . . . . . . . . Highest Corruption 14 | . . . . 4 4 4 4 . . 9 9 9 9 9 1 12 12 14 14 14 14 14 2 2 2 2 . 1 7 2 2 2 3 Average Corruption 6 | . . . . 1 4 4 4 . . 9 9 9 9 6 1 7 12 12 14 14 14 14 1 2 2 2 . 1 1 1 2 2 2 Corruption Purged 9 | . . . . . . . . . . . . . . 9 . . . . . . . . . . . . . . . . . . . Corruption Blocked . | . . . . . . . . . . . . . . . . . . . . . . . . . . . . . . . . . . Effects 200 | . . . . 6 6 8 1 . . 2 7 32 13 5 3 19 3 32 7 8 6 13 5 1 2 . . 4 5 3 5 3 1 Message Errors 48 | . . . . 1 . 1 . . . 1 2 8 3 . 1 6 2 12 . 1 3 4 . . . . . 1 . 1 1 . . Matter Fused 55 | . . . . 3 3 2 . . . 1 4 15 1 . 2 2 . 3 4 2 1 3 2 . . . . 1 . . 2 3 1 Heat Flow Errors 19 | . . . . . . 1 1 . . . . . 2 1 . 3 . 5 . . 2 . . . . . . . 2 1 1 . . Energy Discharges 24 | . . . . . 1 3 . . . . . 3 3 1 . 1 . 2 . 3 . 1 2 1 . . . 1 1 . 1 . . Parts Fused 2 | . . . . . . . . . . . . 1 . . . . . . . . . . . . . . . . 1 . . . . Data Loss (minor) 30 | . . . . 1 1 . . . . . . 2 3 3 . 5 . 5 2 1 . 2 . . 2 . . 1 1 1 . . . Data Loss (major) 12 | . . . . 1 1 1 . . . . 1 2 1 . . 1 . 2 . 1 . 1 . . . . . . . . . . . Misfires 1 | . . . . . . . . . . . . . . . . . . . . . . 1 . . . . . . . . . . . Alerts 4 | . . . . . . . . . . . . 1 . . . . . 1 1 . . . 1 . . . . . . . . . . Misdirections 5 | . . . . . . . . . . . . . . . . 1 1 2 . . . 1 . . . . . . . . . . . Overload Shots . | . . . . . . . . . . . . . . . . . . . . . . . . . . . . . . . . . . Overflow Damage 4560 | . . 10 59 511 70 62 . 23 102 . 93 413 12 527 114 497 . 52 23 60 111 17 194 359 . 15 139 313 81 454 136 58 55 Projectiles 248 | . . 7 59 . . . . . . . . 20 . . . . . . 23 60 . 17 47 . . 15 . . . . . . . Explosions 217 | . . 3 . 72 . . . . . . . . . . . . . . . . . . . . . . 51 . . 36 . . 55 Melee 4095 | . . . . 439 70 62 . 23 102 . 93 393 12 527 114 497 . 52 . . 111 . 147 359 . . 88 313 81 418 136 58 . Knockbacks 88 | . 2 10 21 1 . . . . . . . 2 . . 1 4 . 7 1 3 . 2 18 . . 4 . 12 . . . . . Impact 7 | . . . . 1 . . . . . . . 1 . . 1 4 . . . . . . . . . . . . . . . . . Kinetic 77 | . 2 10 19 . . . . . . . . 1 . . . . . 7 1 3 . 2 17 . . 4 . 11 . . . . . Secondary 4 | . . . 2 . . . . . . . . . . . . . . . . . . . 1 . . . . 1 . . . . . Self-Inflicted Damage 194 | . 7 19 21 71 . . . . . . . . . . . . . . . . . . . . . . . . . . . . 76 Shots 8 | . 1 1 3 2 . . . . . . . . . . . . . . . . . . . . . . . . . . . . 1 Rammed . | . . . . . . . . . . . . . . . . . . . . . . . . . . . . . . . . . . Targets Rammed . | . . . . . . . . . . . . . . . . . . . . . . . . . . . . . . . . . . Kicked . | . . . . . . . . . . . . . . . . . . . . . . . . . . . . . . . . . . Crushed . | . . . . . . . . . . . . . . . . . . . . . . . . . . . . . . . . . . Highest Temperature 785 | . 20 9 276 18 . 266 223 3 . . . 3 180 199 . 263 . 297 64 316 223 13 22 3 . 28 25 194 286 263 229 785 . Average Temperature 73 | . 7 9 59 5 . 64 98 3 . . . 2 78 95 . 67 . 106 29 72 103 11 11 3 . 9 13 57 41 68 80 420 . Received Heat Transfer 2723 | . 30 132 1197 12 . . . 9 . . 6 45 9 . 9 90 . 9 . 18 . . 30 . . . . 42 36 9 9 887 144 Effects 13 | . . . 4 . . . 1 . . . . . . . . . . . . 3 1 . . . . . . . . . . 4 . Shutdowns 2 | . . . . . . . . . . . . . . . . . . . . . . . . . . . . . . . . 2 . Energy Bleed 3 | . . . . . . . 1 . . . . . . . . . . . . . 1 . . . . . . . . . . 1 . Interference 7 | . . . 4 . . . . . . . . . . . . . . . . 3 . . . . . . . . . . . . . Damage (minor) 1 | . . . . . . . . . . . . . . . . . . . . . . . . . . . . . . . . 1 . Siege Activations . | . . . . . . . . . . . . . . . . . . . . . . . . . . . . . . . . . . Martial Activations . | . . . . . . . . . . . . . . . . . . . . . . . . . . . . . . . . . . Shielding Activations . | . . . . . . . . . . . . . . . . . . . . . . . . . . . . . . . . . . Robots Disrupted . | . . . . . . . . . . . . . . . . . . . . . . . . . . . . . . . . . . Combat Hostiles . | . . . . . . . . . . . . . . . . . . . . . . . . . . . . . . . . . . Robots Corrupted 13 | . . . . 1 . . . . 2 . 1 5 . . . 4 . . . . . . . . . . . . . . . . . Combat Hostiles 1 | . . . . . . . . . . . . 1 . . . . . . . . . . . . . . . . . . . . . Parts Fried 10 | . . . . 4 . . . . . . . 2 . 1 . 2 . . . . . . . 1 . . . . . . . . . Impact Corruptions 38 | . . . . 4 . . . . 2 . 2 13 1 2 2 11 . 1 . . . . . . . . . . . . . . . Robots Melted . | . . . . . . . . . . . . . . . . . . . . . . . . . . . . . . . . . . Combat Hostiles . | . . . . . . . . . . . . . . . . . . . . . . . . . . . . . . . . . . Parts Melted 1 | . . . . . . . . . . . . . . . . . . . . . . . . . . . . 1 . . . . . Heat Transferred 2370 | . . . 2220 . . . . . . . . . . . . . . . . . . . . . . . . . . . . 150 . Parts Sabotaged . | . . . . . . . . . . . . . . . . . . . . . . . . . . . . . . . . . . Parts Stolen . | . . . . . . . . . . . . . . . . . . . . . . . . . . . . . . . . . . Parts Stripped . | . . . . . . . . . . . . . . . . . . . . . . . . . . . . . . . . . . Power Chain Reactions . | . . . . . . . . . . . . . . . . . . . . . . . . . . . . . . . . . . Alert | -11 -10 -10 -8 -7 -7 -7 -7 -6 -6 -6 -6 -6 -6 -6 -6 -5 -5 -5 -5 -5 -5 -4 -4 -4 -4 -4 -3 -3 -3 -2 -2 -2 -2 ------- Run | Yrd Mat Sub Mat Fac Low Low Zio Pro Fac Was Fac Ext Cet Arc Hub Fac Was Fac Upp Upp Zhi Pro Fac Upp Upp War Pro Res Tes Res Qua Frg Gar Maximum Alert Level 3 | . . . 2 2 . . . . 3 . . 1 . . 1 . . . . . . . 1 . . . . . . 3 2 1 1 Low Security (%) 62 | 100 100 . 41 . . . . . . 100 100 96 100 100 65 100 100 100 . . . . 74 . . . . 100 100 29 . 88 91 Level 1 14 | . . . 14 76 . . . . 30 . . 3 . . 34 . . . . . . . 25 . . . . . . 22 . 11 8 Level 2 20 | . . . 44 23 . . . . 19 . . . . . . . . . . . . . . . . . . . . 39 100 . . Level 3 2 | . . . . . . . . . 49 . . . . . . . . . . . . . . . . . . . . 7 . . . Level 4 . | . . . . . . . . . . . . . . . . . . . . . . . . . . . . . . . . . . Level 5 . | . . . . . . . . . . . . . . . . . . . . . . . . . . . . . . . . . . High Security . | . . . . . . . . . . . . . . . . . . . . . . . . . . . . . . . . . . Max Security . | . . . . . . . . . . . . . . . . . . . . . . . . . . . . . . . . . . Peak Influence 975 | 10 109 . 623 522 . . . . 975 165 81 209 162 165 287 159 38 129 . . . . 266 . . . . 81 166 825 529 267 262 Initial 973 | . . . . 268 . . . . 973 165 80 7 89 48 7 132 38 12 . . . . . . . . . 81 21 84 463 267 150 Average 211 | 2 24 . 324 305 . . . . 640 146 41 46 65 94 175 120 28 22 . . . . 121 . . . . 36 87 358 491 137 145 Influence Increases 10496 | 40 405 90 1388 752 105 65 . 267 1379 . 55 574 304 231 593 343 . 383 85 45 15 120 565 5 . 120 220 286 319 1003 314 264 161 Destroy 0b10 Robot/C 3220 | . 180 80 780 220 . . . 180 100 . . 260 160 80 120 100 . 60 60 . . 80 120 . . 40 140 60 20 280 . 40 60 Destroy 0b10 Robot/NC 770 | 40 60 . 130 45 . 5 . . 30 . 10 35 10 35 55 55 . 25 . . 15 . 25 5 . 5 5 60 40 45 25 10 . Destroy Leader 616 | . 48 10 202 64 . . . 10 26 . 2 34 . . 60 38 . 14 10 . . 10 14 . . . 30 4 2 32 4 2 . Allied During Kill 506 | . . . . . . . . 62 . . . 121 124 84 115 . . . . . . . . . . . . . . . . . . Successful Hack 443 | . 25 . 10 10 . . . . 20 . 10 52 . . 18 42 . 34 . . . . 87 . . . . 43 9 40 9 34 . Select Force Hacks 60 | . 60 . . . . . . . . . . . . . . . . . . . . . . . . . . . . . . . . Disable Machine 570 | . . . 75 75 . . . . 45 . . . . 15 30 15 . 90 . . . . 45 . . . . 15 60 15 75 15 . Destroy Structure 1176 | . 32 . 116 83 . . . . 63 . 18 27 10 2 30 48 . 70 . . . . 124 . . . . 74 38 261 81 28 71 Advance Influence 900 | . . . . . . . . . 900 . . . . . . . . . . . . . . . . . . . . . . . . Partial Spotted 480 | . . . . 30 . . . . 30 . . 45 . 15 . . . 45 . . . . 105 . . . . . 30 105 60 15 . Lose Combat Pursuer 1755 | . . . 75 225 105 60 . 15 165 . 15 . . . 165 45 . 45 15 45 . 30 45 . . 75 45 30 120 225 60 120 30 Influence Decreases 10225 | 40 405 90 796 826 333 196 159 150 1022 359 155 428 343 332 343 503 93 278 136 115 17 120 344 163 63 82 138 368 207 328 664 538 91 Entered New Map 2446 | . . . . 324 193 56 159 . 44 309 35 8 72 74 14 139 73 6 46 15 2 . . 83 13 . 38 39 17 66 362 208 51 Time Decay 5872 | 40 349 90 596 482 140 140 . 70 318 30 110 275 156 198 259 334 20 258 90 100 15 120 314 80 50 72 100 282 190 222 262 110 . Search Patrol Dispatched 200 | . . . . . . . . . 200 . . . . . . . . . . . . . . . . . . . . . . . . Lost Part 280 | . . . 50 10 . . . . . . . 10 . . . 10 . 10 . . . . 10 . . 10 . 10 . 20 30 70 40 Lost Ally 505 | . . . . 10 . . . 80 10 20 10 46 115 60 70 20 . 4 . . . . 20 . . . . 10 . 20 10 . . Purge Threat 922 | . 56 . 150 . . . . . 450 . . 89 . . . . . . . . . . . . . . . 27 . . . 150 . Squads Dispatched 59 | . 3 . 6 9 . . . . 3 . 1 . . . 5 2 . 4 . 1 . . 4 . . . . 7 5 4 4 1 . Investigation 19 | . 3 . 3 2 . . . . . . . . . . 2 1 . 2 . . . . 2 . . . . 1 1 1 1 . . Extermination 23 | . . . . 4 . . . . 2 . 1 . . . 2 1 . 2 . . . . 2 . . . . 1 3 2 2 1 . Reinforcement 13 | . . . 2 2 . . . . 1 . . . . . 1 . . . . . . . . . . . . 5 1 1 . . . Assault 3 | . . . 1 . . . . . . . . . . . . . . . . 1 . . . . . . . . . . 1 . . Garrison 1 | . . . . 1 . . . . . . . . . . . . . . . . . . . . . . . . . . . . . Intercept . | . . . . . . . . . . . . . . . . . . . . . . . . . . . . . . . . . . Searches Triggered 2 | . . . . . . . . . 2 . . . . . . . . . . . . . . . . . . . . . . . . Unchained Authorized 1 | . . . . . . . . . . . . . . . . . . . . . . . . . . . . . 1 . . . . Construction Impeded 1 | . . . . . . . . . . . . . . . 1 . . . . . . . . . . . . . . . . . . Haulers Reinforced 5 | . . . . 1 . . . . . . . . . . . . . . . . . . . . . . . 4 . . . . . Active Scanning Responses . | . . . . . . . . . . . . . . . . . . . . . . . . . . . . . . . . . . Cargo Convoy Interrupts . | . . . . . . . . . . . . . . . . . . . . . . . . . . . . . . . . . . Stealth | -11 -10 -10 -8 -7 -7 -7 -7 -6 -6 -6 -6 -6 -6 -6 -6 -5 -5 -5 -5 -5 -5 -4 -4 -4 -4 -4 -3 -3 -3 -2 -2 -2 -2 --------- Run | Yrd Mat Sub Mat Fac Low Low Zio Pro Fac Was Fac Ext Cet Arc Hub Fac Was Fac Upp Upp Zhi Pro Fac Upp Upp War Pro Res Tes Res Qua Frg Gar Distress Signals 37 | . 1 . 2 3 . . . 3 1 . 1 2 2 . 4 . . 1 . . . . . . . . . 13 . 2 1 1 . Communications Jammed 26 | . . . . . . . . 2 . . . . . . 9 1 . 1 . . . . 8 . . . . . 4 1 . . . Distress Signals 19 | . . . . . . . . . . . . . . . 4 1 . 1 . . . . 8 . . . . . 4 1 . . . Times Spotted 494 | . 20 15 64 27 6 1 . 7 32 6 6 18 10 5 28 23 6 15 4 3 . 7 17 . . 39 2 17 11 44 8 33 20 Peak Tracking Total 22 | . 5 3 7 10 4 4 . 4 8 6 7 4 5 1 5 7 6 3 4 2 . 4 5 . . 12 7 4 5 15 3 19 22 Tactical Retreats 65 | . . 2 4 10 2 1 . 1 5 . 1 . . . 6 4 . 2 1 2 . 1 2 . . 3 1 2 2 6 3 3 1 ECM-based Alert Blocks 6 | . . . . . . . . . . . . . . . . 5 . . . . . . . . . . . . . . 1 . . Traps | -11 -10 -10 -8 -7 -7 -7 -7 -6 -6 -6 -6 -6 -6 -6 -6 -5 -5 -5 -5 -5 -5 -4 -4 -4 -4 -4 -3 -3 -3 -2 -2 -2 -2 ------- Run | Yrd Mat Sub Mat Fac Low Low Zio Pro Fac Was Fac Ext Cet Arc Hub Fac Was Fac Upp Upp Zhi Pro Fac Upp Upp War Pro Res Tes Res Qua Frg Gar Traps Triggered 21 | . 1 . 1 6 . . . . 1 . . 1 . . . 3 . 2 . . . . . . . . . 1 3 . 1 1 . Indirectly . | . . . . . . . . . . . . . . . . . . . . . . . . . . . . . . . . . . Trap Hack Attempts . | . . . . . . . . . . . . . . . . . . . . . . . . . . . . . . . . . . Triggered . | . . . . . . . . . . . . . . . . . . . . . . . . . . . . . . . . . . Disarmed . | . . . . . . . . . . . . . . . . . . . . . . . . . . . . . . . . . . Reprogrammed . | . . . . . . . . . . . . . . . . . . . . . . . . . . . . . . . . . . Reused . | . . . . . . . . . . . . . . . . . . . . . . . . . . . . . . . . . . Traps Extracted . | . . . . . . . . . . . . . . . . . . . . . . . . . . . . . . . . . . Installed . | . . . . . . . . . . . . . . . . . . . . . . . . . . . . . . . . . . Triggered . | . . . . . . . . . . . . . . . . . . . . . . . . . . . . . . . . . . Machines | -11 -10 -10 -8 -7 -7 -7 -7 -6 -6 -6 -6 -6 -6 -6 -6 -5 -5 -5 -5 -5 -5 -4 -4 -4 -4 -4 -3 -3 -3 -2 -2 -2 -2 ---------- Run | Yrd Mat Sub Mat Fac Low Low Zio Pro Fac Was Fac Ext Cet Arc Hub Fac Was Fac Upp Upp Zhi Pro Fac Upp Upp War Pro Res Tes Res Qua Frg Gar Machines Disabled 42 | . . 1 5 5 . . . . 3 . . . . 1 2 1 . 6 . . . . 3 . . 1 . 1 4 1 5 3 . Max in Single Turn 1 | . . 1 1 1 . . . . 1 . . . . . 1 1 . 1 . . . . 1 . . 1 . 1 1 1 1 1 . Garrison Access 13 | . . . 1 2 . . . . 2 . . . . . 1 1 . 2 . . . . 1 . . . . 1 . 1 1 . . Machines Repaired . | . . . . . . . . . . . . . . . . . . . . . . . . . . . . . . . . . . Machines Dismantled . | . . . . . . . . . . . . . . . . . . . . . . . . . . . . . . . . . . Machines Sabotaged . | . . . . . . . . . . . . . . . . . . . . . . . . . . . . . . . . . . Overloaded Fab Kills . | . . . . . . . . . . . . . . . . . . . . . . . . . . . . . . . . . . Hacking | -11 -10 -10 -8 -7 -7 -7 -7 -6 -6 -6 -6 -6 -6 -6 -6 -5 -5 -5 -5 -5 -5 -4 -4 -4 -4 -4 -3 -3 -3 -2 -2 -2 -2 --------- Run | Yrd Mat Sub Mat Fac Low Low Zio Pro Fac Was Fac Ext Cet Arc Hub Fac Was Fac Upp Upp Zhi Pro Fac Upp Upp War Pro Res Tes Res Qua Frg Gar Machines Accessed 178 | . 10 2 11 10 1 1 . . 13 . 9 14 1 . 7 13 . 19 1 . 4 . 11 2 1 1 . 14 9 11 7 6 . Terminals 106 | . 8 . 7 4 . 1 . . 9 . 4 13 1 . 6 5 . 9 . . . . 6 . . . . 8 7 8 5 5 . Fabricators 16 | . . . . 3 . . . . . . 1 . . . . 2 . 4 . . . . 2 . . . . 2 1 1 . . . Repair Stations 3 | . . . 1 . . . . . . . . 1 . . . . . 1 . . . . . . . . . . . . . . . Recycling Units 17 | . 2 . 1 1 . . . . 2 . 3 . . . . 3 . 2 . . . . 1 . . . . 1 . 1 . . . Scanalyzers 10 | . . . 1 . . . . . . . 1 . . . . 2 . 1 . . . . 1 . . . . 2 1 . 1 . . Garrison Access 14 | . . . 1 2 . . . . 2 . . . . . 1 1 . 2 . . . . 1 . . . . 1 . 1 1 1 . Total Hacks 483 | . 26 5 29 19 1 1 . . 27 . 25 48 2 . 20 49 . 53 1 . 16 . 39 6 1 1 . 39 18 28 13 16 . Successful 297 | . 16 5 16 11 1 1 . . 12 . 15 31 . . 10 33 . 28 1 . 16 . 26 6 1 1 . 25 6 17 8 11 . Failed 183 | . 9 . 13 8 . . . . 15 . 10 16 2 . 10 16 . 25 . . . . 13 . . . . 14 12 11 4 5 . Catastrophic 29 | . 2 . 3 2 . . . . 2 . 2 1 1 . 3 2 . 5 . . . . 1 . . . . 1 . 2 1 1 . Database Lockouts 3 | . 1 . . . . . . . . . . 1 . . . . . . . . . . . . . . . . . . 1 . . Manual 211 | . 14 . 13 4 . . . . 17 . 12 24 1 . 11 23 . 28 . . . . 20 . . . . 8 5 19 8 4 . Terminals 317 | . 22 . 21 8 . 1 . . 21 . 14 46 2 . 18 30 . 26 . . . . 25 . . . . 19 16 23 10 15 . Fabricators 42 | . . . . 7 . . . . . . 1 . . . . 4 . 13 . . . . 8 . . . . 6 1 2 . . . Repair Stations 7 | . . . 2 . . . . . . . . 2 . . . . . 3 . . . . . . . . . . . . . . . Recycling Units 28 | . 4 . 1 1 . . . . 3 . 7 . . . . 4 . 3 . . . . 2 . . . . 1 . 2 . . . Scanalyzers 38 | . . . 4 . . . . . . . 3 . . . . 10 . 4 . . . . 3 . . . . 11 1 . 2 . . Garrison Access 20 | . . . 1 3 . . . . 3 . . . . . 2 1 . 4 . . . . 1 . . . . 2 . 1 1 1 . Terminal Hacks 143 | . 9 5 7 . 1 1 . . 4 . 3 23 . . 4 14 . 6 1 . 16 . 11 6 1 1 . 9 3 9 1 8 . Record 19 | . . 4 . . . 1 . . . . . . . . . . . . . . 4 . . 5 . . . . . 1 . 4 . Part Schematic 12 | . . . 1 . . . . . . . . 4 . . . . . 1 . . 4 . . . . . . . 1 1 . . . Robot Analysis 8 | . 2 . 1 . . . . . . . . . . . . . . . . . 4 . . . . . . 1 . . . . . Prototype ID Bank 10 | . 2 . . . . . . . . . . 3 . . . . . . . . 4 . . . . . . 1 . . . . . Open Door 12 | . . . . . 1 . . . . . 1 5 . . . . . . 1 . . . . 1 1 1 . . 1 . . . . Level Access Points 3 | . . . . . . . . . . . . . . . . 1 . 1 . . . . 1 . . . . . . . . . . Branch Access Points 6 | . . . . . . . . . . . 1 . . . . 1 . 1 . . . . 1 . . . . 1 . 1 . . . Emergency Access Points 2 | . . . . . . . . . . . . . . . . 1 . . . . . . . . . . . . . . . 1 . Machine Index 1 | . . . . . . . . . . . . . . . . . . 1 . . . . . . . . . . . . . . . Terminal Index 7 | . . . . . . . . . . . 1 1 . . 1 1 . 1 . . . . 1 . . . . . . 1 . . . Fabricator Index 4 | . . . . . . . . . . . . . . . . 1 . . . . . . 1 . . . . 1 . 1 . . . Scanalyzer Index 2 | . . . . . . . . . . . . 1 . . . 1 . . . . . . . . . . . . . . . . . Garrison Index 2 | . . . . . . . . . . . . . . . . 1 . . . . . . 1 . . . . . . . . . . Alert Level 3 | . 1 . 1 . . . . . . . . . . . 1 . . . . . . . . . . . . . . . . . . Unreport Threat 10 | . 1 . 1 . . . . . 3 . . 3 . . . . . . . . . . . . . . . 1 . . . 1 . Locate Traps 16 | . 3 . 2 . . . . . . . . 2 . . . 1 . 1 . . . . 3 . . . . 2 . 1 . 1 . Security Status 1 | . . . . . . . . . . . . 1 . . . . . . . . . . . . . . . . . . . . . Recall Investigation 1 | . . . . . . . . . . . . . . . . . . . . . . . . . . . . . . 1 . . . Recall Extermination 8 | . . . . . . . . . 1 . . . . . 1 1 . . . . . . 1 . . . . 1 1 1 1 . . Recall Reinforcements 1 | . . . . . . . . . . . . . . . . . . . . . . . . . . . . 1 . . . . . Hauler Manifests 2 | . . . 1 . . . . . . . . 1 . . . . . . . . . . . . . . . . . . . . . Registered Components 2 | . . . . . . . . . . . . . . . . 1 . . . . . . 1 . . . . . . . . . . Registered Prototypes 1 | . . . . . . . . . . . . . . . . 1 . . . . . . . . . . . . . . . . . Zone Layout 9 | . . . . . . . . . . . . 2 . . 1 3 . . . . . . 1 . . . . . . 1 . 1 . Proto ID Catalog 1 | . . 1 . . . . . . . . . . . . . . . . . . . . . . . . . . . . . . . Fabricator Hacks 24 | . . . . 5 . . . . . . 1 . . . . 3 . 6 . . . . 4 . . . . 2 1 2 . . . Network Status 4 | . . . . 1 . . . . . . 1 . . . . . . . . . . . . . . . . 1 1 . . . . Load Schematic 14 | . . . . 3 . . . . . . . . . . . 2 . 4 . . . . 3 . . . . 1 . 1 . . . Build 6 | . . . . 1 . . . . . . . . . . . 1 . 2 . . . . 1 . . . . . . 1 . . . Repair Station Hacks 6 | . . . 2 . . . . . . . . 2 . . . . . 2 . . . . . . . . . . . . . . . Scan Component 3 | . . . 1 . . . . . . . . 1 . . . . . 1 . . . . . . . . . . . . . . . Repair 3 | . . . 1 . . . . . . . . 1 . . . . . 1 . . . . . . . . . . . . . . . Recycling Unit Hacks 15 | . 1 . . 1 . . . . 2 . 3 . . . . 3 . 2 . . . . 1 . . . . 1 . 1 . . . Retrieve Components 15 | . 1 . . 1 . . . . 2 . 3 . . . . 3 . 2 . . . . 1 . . . . 1 . 1 . . . Scanalyzer 26 | . . . 3 . . . . . . . 3 . . . . 6 . 2 . . . . 1 . . . . 9 1 . 1 . . Insert Component 12 | . . . 1 . . . . . . . 3 . . . . 3 . 1 . . . . . . . . . 3 1 . . . . Analyze 7 | . . . 2 . . . . . . . . . . . . 3 . 1 . . . . . . . . . 1 . . . . . Retrieve Study 7 | . . . . . . . . . . . . . . . . . . . . . . . 1 . . . . 5 . . 1 . . Garrison Access Hacks 14 | . . . 1 2 . . . . 2 . . . . . 1 1 . 2 . . . . 1 . . . . 1 . 1 1 1 . Unlock Access 1 | . . . . . . . . . . . . . . . . . . . . . . . . . . . . . . . . 1 . Seal Access 13 | . . . 1 2 . . . . 2 . . . . . 1 1 . 2 . . . . 1 . . . . 1 . 1 1 . . Unauthorized Hacks 69 | . 6 . 3 3 . . . . 4 . 5 6 . . 5 6 . 8 . . . . 8 . . . . 3 1 4 5 2 . Terminals 56 | . 4 . 3 1 . . . . 4 . 5 6 . . 5 5 . 3 . . . . 5 . . . . 3 1 4 5 2 . Track 3 | . . . . . . . . . . . . . . . . . . . . . . . . . . . . . . . 2 1 . Assimilate 22 | . 1 . . . . . . . 1 . 3 2 . . 2 2 . 1 . . . . 3 . . . . 3 . 3 1 . . Botnet 24 | . 2 . 2 1 . . . . 2 . 2 2 . . 2 2 . 2 . . . . 2 . . . . . 1 1 2 1 . Detonate 1 | . . . . . . . . . . . . 1 . . . . . . . . . . . . . . . . . . . . . Disrupt 1 | . . . . . . . . . 1 . . . . . . . . . . . . . . . . . . . . . . . . Operators 4 | . 1 . 1 . . . . . . . . 1 . . . 1 . . . . . . . . . . . . . . . . . Sabotage 1 | . . . . . . . . . . . . . . . 1 . . . . . . . . . . . . . . . . . . Fabricators 10 | . . . . 2 . . . . . . . . . . . 1 . 4 . . . . 3 . . . . . . . . . . Prioritize 3 | . . . . . . . . . . . . . . . . . . 2 . . . . 1 . . . . . . . . . . Recompile 7 | . . . . 2 . . . . . . . . . . . 1 . 2 . . . . 2 . . . . . . . . . . Repair Stations 1 | . . . . . . . . . . . . . . . . . . 1 . . . . . . . . . . . . . . . Mechanics 1 | . . . . . . . . . . . . . . . . . . 1 . . . . . . . . . . . . . . . Recycling Units 2 | . 2 . . . . . . . . . . . . . . . . . . . . . . . . . . . . . . . . Tunnel 2 | . 2 . . . . . . . . . . . . . . . . . . . . . . . . . . . . . . . . Scanalyzers . | . . . . . . . . . . . . . . . . . . . . . . . . . . . . . . . . . . Garrison Access . | . . . . . . . . . . . . . . . . . . . . . . . . . . . . . . . . . . Data Cores Recovered 6 | . . . 2 . . . . . . . . . . . 2 . . . . . . . . . . . . 1 . 1 . . . Used . | . . . . . . . . . . . . . . . . . . . . . . . . . . . . . . . . . . Hacking Detections 117 | . 8 . 10 5 . . . . 8 . 6 7 1 . 7 8 . 12 . . . . 8 . . . . 12 6 8 5 6 . Full Trace Events 5 | . . . 2 . . . . . . . . . . . . . . . . . . . . . . . . 1 . 1 1 . . Feedback Events 1 | . . . . . . . . . . . . . . . . . . . . . . . . . . . . 1 . . . . . Hackware Fried 1 | . . . . . . . . . . . . . . . . . . . . . . . . . . . . 1 . . . . . Feedback Blocked . | . . . . . . . . . . . . . . . . . . . . . . . . . . . . . . . . . . Robot Schematics Acquired . | . . . . . . . . . . . . . . . . . . . . . . . . . . . . . . . . . . Robots Built . | . . . . . . . . . . . . . . . . . . . . . . . . . . . . . . . . . . Authchips . | . . . . . . . . . . . . . . . . . . . . . . . . . . . . . . . . . . Time . | . . . . . . . . . . . . . . . . . . . . . . . . . . . . . . . . . . Total Robot Build Rating . | . . . . . . . . . . . . . . . . . . . . . . . . . . . . . . . . . . Part Schematics Acquired 16 | . . . 2 . . . . . . . . 4 . . . 2 . 1 . . 4 . . . . . . 1 1 1 . . . Parts Built 8 | . . . . 2 . . . . . . . . . . . 2 . 2 . . . . 1 . . . . . . 1 . . . Authchips 5 | . . . . 1 . . . . . . . . . . . 1 . 2 . . . . 1 . . . . . . . . . . Time 550 | . . . . 24 . . . . . . . . . . . 73 . 321 . . . . 76 . . . . . . 56 . . . Total Part Build Rating 34 | . . . . 6 . . . . . . . . . . . 6 . 11 . . . . 5 . . . . . . 6 . . . Part Studies Acquired 7 | . . . . . . . . . . . . . . . . . . . . . . . 1 . . . . 5 . . 1 . . Parts Repaired 3 | . . . 1 . . . . . . . . 1 . . . . . 1 . . . . . . . . . . . . . . . Time 184 | . . . 38 . . . . . . . . 38 . . . . . 108 . . . . . . . . . . . . . . . Parts Recycled . | . . . . . . . . . . . . . . . . . . . . . . . . . . . . . . . . . . Recycled Matter . | . . . . . . . . . . . . . . . . . . . . . . . . . . . . . . . . . . Retrieved Matter . | . . . . . . . . . . . . . . . . . . . . . . . . . . . . . . . . . . Retrieved Components 44 | . 10 . . 7 . . . . 6 . 7 . . . . 5 . 4 . . . . 3 . . . . 1 . 1 . . . Parts Scanalyzed 5 | . . . 1 . . . . . . . . . . . . 2 . 1 . . . . . . . . . 1 . . . . . Part Schematics Acquired 4 | . . . 1 . . . . . . . . . . . . 2 . . . . . . . . . . . 1 . . . . . Parts Damaged . | . . . . . . . . . . . . . . . . . . . . . . . . . . . . . . . . . . Bothacking | -11 -10 -10 -8 -7 -7 -7 -7 -6 -6 -6 -6 -6 -6 -6 -6 -5 -5 -5 -5 -5 -5 -4 -4 -4 -4 -4 -3 -3 -3 -2 -2 -2 -2 ------------ Run | Yrd Mat Sub Mat Fac Low Low Zio Pro Fac Was Fac Ext Cet Arc Hub Fac Was Fac Upp Upp Zhi Pro Fac Upp Upp War Pro Res Tes Res Qua Frg Gar Used RIF Installer . | . . . . . . . . . . . . . . . . . . . . . . . . . . . . . . . . . . Robots Hacked . | . . . . . . . . . . . . . . . . . . . . . . . . . . . . . . . . . . Non-combat . | . . . . . . . . . . . . . . . . . . . . . . . . . . . . . . . . . . Combat . | . . . . . . . . . . . . . . . . . . . . . . . . . . . . . . . . . . Robot Hacks Applied . | . . . . . . . . . . . . . . . . . . . . . . . . . . . . . . . . . . Relay Couplers Released 3 | . . . . . . . . . . . . . . . . . . . . . . . . . . . . . . 3 . . . Machine Destruction 3 | . . . . . . . . . . . . . . . . . . . . . . . . . . . . . . 3 . . . Fabnet Peak Effective % . | . . . . . . . . . . . . . . . . . . . . . . . . . . . . . . . . . . Robots Rewired 13 | . . . . . . . . . . . . 13 . . . . . . . . . . . . . . . . . . . . . Allies Hacked 1 | . . . . . . . . . . . . . . . . . . . . . . . . . . . . . . . 1 . . Hacks Repelled . | . . . . . . . . . . . . . . . . . . . . . . . . . . . . . . . . . . Allies | -11 -10 -10 -8 -7 -7 -7 -7 -6 -6 -6 -6 -6 -6 -6 -6 -5 -5 -5 -5 -5 -5 -4 -4 -4 -4 -4 -3 -3 -3 -2 -2 -2 -2 -------- Run | Yrd Mat Sub Mat Fac Low Low Zio Pro Fac Was Fac Ext Cet Arc Hub Fac Was Fac Upp Upp Zhi Pro Fac Upp Upp War Pro Res Tes Res Qua Frg Gar Total Allies 47 | . 1 . . . . . 5 . 1 1 3 20 5 . 1 2 1 1 . . . . 2 . . . . 1 . 2 1 . . Largest Group 16 | . 1 1 1 1 . . 5 5 1 1 1 16 15 6 4 2 1 1 . . . . 1 . . . . 1 . 1 1 . . Highest-Rated Group 719 | . 10 10 9 9 . . 135 135 10 31 26 622 719 428 291 36 31 10 . . . . 26 . . . . 26 . 45 45 . . Highest-Rated Ally 159 | . 10 10 9 9 . . 31 31 10 31 26 159 159 96 96 26 31 10 . . . . 26 . . . . 26 . 45 45 . . Total Orders 17 | . . 2 2 . . . . . . . . 7 1 2 . 2 . . . . . . 1 . . . . . . . . . . STAY 8 | . . 1 1 . . . . . . . . 3 1 1 . 1 . . . . . . . . . . . . . . . . . ROAM 1 | . . . . . . . . . . . . 1 . . . . . . . . . . . . . . . . . . . . . FOLLOW 7 | . . 1 1 . . . . . . . . 3 . 1 . 1 . . . . . . . . . . . . . . . . . RETURN 1 | . . . . . . . . . . . . . . . . . . . . . . . 1 . . . . . . . . . . Ally Attacks 269 | . . . . . . . . 33 . 8 . 58 103 25 39 . 3 . . . . . . . . . . . . . . . . Total Damage 6887 | . . . . . . . . 434 . 149 . 1201 2667 1057 1318 . 61 . . . . . . . . . . . . . . . . Kills 36 | . . . . . . . . 5 . . . 7 10 5 9 . . . . . . . . . . . . . . . . . . Allies Corrupted . | . . . . . . . . . . . . . . . . . . . . . . . . . . . . . . . . . . Allies Melted . | . . . . . . . . . . . . . . . . . . . . . . . . . . . . . . . . . . Intel | -11 -10 -10 -8 -7 -7 -7 -7 -6 -6 -6 -6 -6 -6 -6 -6 -5 -5 -5 -5 -5 -5 -4 -4 -4 -4 -4 -3 -3 -3 -2 -2 -2 -2 ------- Run | Yrd Mat Sub Mat Fac Low Low Zio Pro Fac Was Fac Ext Cet Arc Hub Fac Was Fac Upp Upp Zhi Pro Fac Upp Upp War Pro Res Tes Res Qua Frg Gar Active Infowar (turns) 16039 | 13 275 1416 2992 1232 283 280 98 247 705 62 253 940 327 105 492 687 51 852 198 215 102 272 740 167 128 418 312 626 390 459 577 124 1 Sensors 9659 | . . . . . 266 280 97 119 705 62 253 905 327 105 490 610 51 836 198 215 100 253 740 167 128 418 262 624 368 458 509 112 1 Seismic 7634 | 13 275 1416 2992 1232 68 280 97 143 705 62 253 98 . . . . . . . . . . . . . . . . . . . . . Cloaking 580 | . . . . . . . . . . . . . . . . . . . 11 129 45 187 208 . . . . . . . . . . Jamming 2581 | . . . . . . . 1 175 . . . 98 250 . 111 349 . 393 76 35 5 167 246 . . 3 312 111 86 72 8 83 . ECM 124 | . . . . . . . . . 22 . . . . . . 30 . . . . . . . . . . . . 3 1 68 . . Robot Analysis Total 8 | . 2 . 1 . . . . . . . . . . . . . . . . . 4 . . . . . . 1 . . . . . Derelict Logs Recovered 15 | . . 2 . . 1 3 1 1 . . . . . . . . . . 1 2 . 2 . . 2 . . . . . . . . Drone Launches 1 | . . . . . . . . . . . . . . . . . . . . . . . 1 . . . . . . . . . . Drone Recoveries 1 | . . . . . . . . . . . . . . . . . . . . . . . 1 . . . . . . . . . . Exploration | -11 -10 -10 -8 -7 -7 -7 -7 -6 -6 -6 -6 -6 -6 -6 -6 -5 -5 -5 -5 -5 -5 -4 -4 -4 -4 -4 -3 -3 -3 -2 -2 -2 -2 ------------- Run | Yrd Mat Sub Mat Fac Low Low Zio Pro Fac Was Fac Ext Cet Arc Hub Fac Was Fac Upp Upp Zhi Pro Fac Upp Upp War Pro Res Tes Res Qua Frg Gar Turns Passed 21835 | 232 1877 2361 4891 1242 283 280 472 252 707 62 253 952 344 417 563 749 53 862 198 215 102 272 740 167 128 474 312 652 395 469 577 224 58 Spaces Moved 26882 | 102 884 1069 1730 2239 696 635 950 428 1180 152 510 978 221 215 801 1193 119 1844 467 484 155 531 1505 469 418 973 822 1249 877 1192 1266 446 82 Core 37 | 1 . . . . . . . 3 . . . . . . . . . . . . . . . . . . . . . 3 . . 30 Treads 1171 | 99 191 . 868 13 . . . . . . . . . . . . . . . . . . . . . . . . . . . . . Legs . | . . . . . . . . . . . . . . . . . . . . . . . . . . . . . . . . . . Wheels 2626 | 2 693 1069 862 . . . . . . . . . . . . . . . . . . . . . . . . . . . . . . Hover . | . . . . . . . . . . . . . . . . . . . . . . . . . . . . . . . . . . Flight 23048 | . . . . 2226 696 635 950 425 1180 152 510 978 221 215 801 1193 119 1844 467 484 155 531 1505 469 418 973 822 1249 877 1189 1266 446 52 Fastest Speed 6 | 50 160 195 150 34 34 34 34 34 34 34 34 34 34 34 34 28 32 32 28 28 32 32 29 29 29 21 21 15 6 6 12 23 37 Average Speed 55 | 157 188 195 227 35 34 34 34 37 34 34 34 38 34 35 34 35 32 32 31 31 32 32 30 29 29 28 27 23 18 18 20 28 44 Slowest Speed 550 | 160 400 195 480 237 34 34 34 550 94 34 34 94 94 94 37 95 32 32 32 32 95 32 32 29 29 30 28 28 19 200 27 110 105 Overloaded Moves 367 | . . . . . . . . . . . . . . . . 59 . . 15 6 . . . . . 9 10 . 38 65 44 121 . Propulsion Burnouts . | . . . . . . . . . . . . . . . . . . . . . . . . . . . . . . . . . . Robots Hopped 43 | . . . . 1 . . . . 2 . 1 10 . . 4 1 . . . . . . . . . . . . . 15 . 8 1 Potential Cave-ins 2 | . . . . . . . . . . . . . . . . . . . . . . . . . . . . . . 2 . . . Cave-ins Triggered . | . . . . . . . . . . . . . . . . . . . . . . . . . . . . . . . . . . Teleports 1 | . . . . . . . . . . . . . . . . . . . . . . . . . . . . . . 1 . . . Exploration Rate (%) 60 | 6 99 47 91 46 84 80 83 57 37 97 15 82 64 81 59 28 76 47 70 76 60 59 37 69 48 82 85 36 79 35 86 21 36 Regions Visited 33 Branch Regions 20 Pre-discovered Areas 11 | . 2 1 . . . 1 2 . . . . . . . . . . . . 1 3 . . . 1 . . . . . . . . Known Exits Taken 21 | . . . . . . . . 1 . . 1 1 1 1 1 . . 1 1 1 1 1 1 1 1 1 1 1 1 1 1 1 . Unknown Exits Taken 8 | 1 1 1 1 1 1 1 1 . . . . . . . . . . . . . . . . . . . . . . . . . . Scrap Searched 21 | . . . . . 4 1 1 . . . . . . . . . . . 2 3 . 2 . 4 1 . 3 . . . . . . Spaces Dug 381 | . 8 . 19 63 . . . . 50 . 18 1 . . 12 17 . 29 1 11 . . 38 1 . . 9 27 14 34 21 5 3 Terrain Destroyed 940 | . 29 26 116 89 . . . 17 68 . 18 25 1 . 12 22 . 38 3 17 . 9 63 12 . 12 129 36 19 96 29 10 44 Melee 249 | . . . 1 46 . . . . 39 . 18 1 . . 12 17 . 14 . . . . 19 1 . . 5 25 12 26 8 5 . Projectile 277 | . 2 . 74 1 . . . . . . . 5 1 . . . . 24 3 17 . 9 44 11 . 12 14 10 7 17 21 5 . AOE 414 | . 27 26 41 42 . . . 17 29 . . 19 . . . 5 . . . . . . . . . . 110 1 . 53 . . 44 Terrain Rammed . | . . . . . . . . . . . . . . . . . . . . . . . . . . . . . . . . . . Walls Destroyed . | . . . . . . . . . . . . . . . . . . . . . . . . . . . . . . . . . . Machines Disabled . | . . . . . . . . . . . . . . . . . . . . . . . . . . . . . . . . . . Actions | -11 -10 -10 -8 -7 -7 -7 -7 -6 -6 -6 -6 -6 -6 -6 -6 -5 -5 -5 -5 -5 -5 -4 -4 -4 -4 -4 -3 -3 -3 -2 -2 -2 -2 --------- Run | Yrd Mat Sub Mat Fac Low Low Zio Pro Fac Was Fac Ext Cet Arc Hub Fac Was Fac Upp Upp Zhi Pro Fac Upp Upp War Pro Res Tes Res Qua Frg Gar Total 31942 | 135 1023 1194 2381 2539 740 696 1098 509 1352 161 549 1480 473 523 1026 1383 133 2054 501 530 197 622 1699 485 424 1134 876 1497 1054 1341 1520 512 101 Wait 3064 | . 41 19 375 57 41 61 144 73 67 10 8 367 225 283 185 66 12 124 14 31 16 81 99 4 7 100 17 113 99 85 189 41 10 Move 26774 | 101 883 1068 1729 2236 695 634 949 427 1176 151 507 960 220 214 792 1191 118 1843 466 483 154 530 1504 468 417 972 821 1248 876 1165 1265 431 80 Hop 35 | . . . . 1 . . . . 2 . 1 7 . . 4 1 . . . . . . . . . . . . . 11 . 7 1 Pick Up 151 | 9 27 8 24 13 1 . 1 . 6 . 3 1 3 . . 11 1 8 2 1 2 . 6 . . 4 . 10 3 1 4 2 . Fast Attach 102 | 6 . 1 10 9 . . 1 . 2 . . . 2 4 4 2 . 5 2 . 7 . 3 . . 8 4 12 10 6 2 2 . Attach 73 | 1 . 3 9 15 . . . . 2 . . 1 1 . . 5 . 7 1 . 1 . 3 . . . 2 5 1 5 3 5 3 Detach 23 | . . . 1 4 . . . . . . . . . . . . . 3 1 . 1 . . . . . 2 1 2 3 2 2 1 Swap 192 | . 17 10 29 10 1 . 1 5 20 . 2 15 8 2 4 18 1 7 . . 2 3 3 1 . 7 4 6 5 3 7 1 . Drop 223 | . 15 11 29 30 1 . 2 . 7 . 5 2 6 4 5 8 1 11 3 1 8 . 6 1 . 12 4 21 14 4 5 5 2 Fire 576 | 18 40 74 174 5 . . . 2 7 . . 18 1 1 . 1 . 20 5 14 . 8 46 5 . 31 14 26 20 17 18 7 4 Melee 552 | . . . 1 87 1 1 . 2 59 . 23 22 7 15 32 67 . 25 7 . 6 . 29 6 . . 8 55 24 41 25 9 . Ram . | . . . . . . . . . . . . . . . . . . . . . . . . . . . . . . . . . . Kick . | . . . . . . . . . . . . . . . . . . . . . . . . . . . . . . . . . . Crush . | . . . . . . . . . . . . . . . . . . . . . . . . . . . . . . . . . . Escape Stasis 99 | . . . . 72 . . . . . . . 15 . . . 12 . . . . . . . . . . . . . . . . . Rewire 71 | . . . . . . . . . . . . 71 . . . . . . . . . . . . . . . . . . . . . Trap . | . . . . . . . . . . . . . . . . . . . . . . . . . . . . . . . . . . Miscellaneous 7 | . . . . . . . . . 4 . . 1 . . . 1 . 1 . . . . . . . . . . . . . . . Route ------- -11/Scrapyard -10/Materials (discovered 5 exits: [*Mat x3] / [*Min] / *Sub) -10/Subcaves (discovered 3 exits: *Mat x2 / Rec) -8/Materials (discovered 3 exits: *Fac x3) -7/Factory (discovered 4 exits: *Fac x2 / *Low x2) -7/Lower Caves -7/Lower Caves -7/Zion -6/Proximity Caves -6/Factory (discovered 4 exits: *Fac x2 / *Low / Ext) -6/Waste -6/Factory (discovered 4 exits: Low x2 / *Ext x2) -6/Extension (discovered 2 exits: *Fac / *Cet) -6/Cetus (discovered 2 exits: *Fac / *Arc) -6/Archives (discovered 2 exits: *Hub x2) -6/Hub_04(d) (discovered 2 exits: *Fac x2) -5/Factory (discovered 6 exits: Fac x4 / Upp x2) -5/Waste -5/Factory (discovered 6 exits: *Fac x4 / *Upp x2) -5/Upper Caves -5/Upper Caves -5/Zhirov -4/Proximity Caves -4/Factory (discovered 6 exits: *Res x4 / *Upp x2) -4/Upper Caves -4/Upper Caves (discovered 2 exits: Res / *War) -4/Warlord -3/Proximity Caves -3/Research (discovered 3 exits: Arm / *Tes x2) -3/Testing -2/Research (discovered 2 exits: *Qua x2) -2/Quarantine (discovered 2 exits: *Sec / *Frg) -2/Protoforge -2/Garrison History --------- Turn | Location | Event 17 | -11/Scrapyard | Discovered new exit (range 14) 233 | -11/Scrapyard | Entered Materials 234 | -10/Materials | Met a group of wandering Federalists 344 | -10/Materials | Build established: Mutant 369 | -10/Materials | Discovered new exit (range 16) 567 | -10/Materials | Discovered new exit (range 14) 620 | -10/Materials | Central database locked down 873 | -10/Materials | Discovered new exit (range 3) 977 | -10/Materials | Discovered new exit (range 15) 1370 | -10/Materials | Discovered new exit (range 16) 2110 | -10/Materials | Entered Subcaves 2110 | -10/Subcaves | Accompanied by 1 ally 2110 | -10/Subcaves | Discovered new exit (range 14) 2133 | -10/Subcaves | Identified exit to Recycling 2771 | -10/Subcaves | Shifting Twisted Machinery released Sub. Optics 2859 | -10/Subcaves | Shifting Twisted Machinery released Piercing Trap 3014 | -10/Subcaves | A Subdweller sparked back to life 3014 | -10/Subcaves | A Subdweller sparked back to life 3014 | -10/Subcaves | A Subdweller sparked back to life 3032 | -10/Subcaves | Core integrity fell below 50% 3057 | -10/Subcaves | Found Prototype Flight Unit 3101 | -10/Subcaves | Shifting Twisted Machinery released Shrapnel Trap 3104 | -10/Subcaves | Shifting Twisted Machinery released Spk. Treads 3110 | -10/Subcaves | Shifting Twisted Machinery released Sub. Monowheel 3181 | -10/Subcaves | A swath of the cavern ceiling suddenly collapsed 3233 | -10/Subcaves | Shifting Twisted Machinery released Sub. Beam Cannon 3539 | -10/Subcaves | Visited 4L-MR0's lab 3546 | -10/Subcaves | Identified Flightbrick 3562 | -10/Subcaves | Found Power Bank 4023 | -10/Subcaves | Discovered new exit (range 6) 4029 | -10/Subcaves | Visited Clippyterm 4035 | -10/Subcaves | Learned location of Extension (-6) 4288 | -10/Subcaves | Learned Materials emergency access door positions 4471 | -10/Subcaves | Entered Materials 4471 | -8/Materials | Accompanied by 1 ally 4471 | -8/Materials | Evolved 4 slots: Propulsion x2, Utility x2 5312 | -8/Materials | Repaired Hvy. Armor Plating 5863 | -8/Materials | Discovered new exit (range 16) 7271 | -8/Materials | First assault squad dispatched 7277 | -8/Materials | Discovered new exit (range 9) 7911 | -8/Materials | Discovered new exit (range 4) 9362 | -8/Materials | Entered Factory 9362 | -7/Factory | Accompanied by 1 ally 9362 | -7/Factory | Evolved 2 slots: Propulsion x2 9399 | -7/Factory | Attached Flightbrick, gained temporary slots: Utility x3 9452 | -7/Factory | Garrison activated, responded to threat 9559 | -7/Factory | Discovered new exit (range 7) 9609 | -7/Factory | Discovered new exit (range 16) 9698 | -7/Factory | Build established: Hacker-Mutant 9758 | -7/Factory | Discovered new exit (range 11) 9897 | -7/Factory | Discovered new exit (range 12) 10124 | -7/Factory | Fabricated Imp. Propulsion Shielding? 10462 | -7/Factory | Identified exit to Factory 10604 | -7/Factory | Entered Lower Caves 10709 | -7/Lower Caves | Learned Factory terminal intel 10733 | -7/Lower Caves | Discovered new exit (range 15) 10887 | -7/Lower Caves | Entered another Lower Caves area 10990 | -7/Lower Caves | Learned Factory stockpile data 11115 | -7/Lower Caves | Discovered new exit (range 11) 11167 | -7/Lower Caves | Entered Zion 11195 | -7/Zion | Discovered new exit (range 10) 11215 | -7/Zion | System corruption cleaned by Quarantine Array 11283 | -7/Zion | Learned Factory trap positions 11298 | -7/Zion | Learned location of Warlord (-4) 11319 | -7/Zion | Learned location of Data Miner (-6) 11451 | -7/Zion | Gained Derelict followers 11639 | -7/Zion | Entered Proximity Caves 11639 | -6/Proximity Caves | Accompanied by 5 allies 11718 | -6/Proximity Caves | Spotter reported a threat 11719 | -6/Proximity Caves | Spotter reported a threat 11752 | -6/Proximity Caves | Attracted the attention of an 0b10 outpost 11771 | -6/Proximity Caves | Spotter reported a threat 11772 | -6/Proximity Caves | Spotter reported a threat 11824 | -6/Proximity Caves | Spotter reported a threat 11829 | -6/Proximity Caves | Spotter reported a threat 11844 | -6/Proximity Caves | Learned Factory non-interactive machine intel 11877 | -6/Proximity Caves | Spotter reported a threat 11880 | -6/Proximity Caves | Discovered exit to Factory (range 7) 11891 | -6/Proximity Caves | Entered Factory 11891 | -6/Factory | Evolved 2 slots: Utility x2 11892 | -6/Factory | Identified exit to Extension 11893 | -6/Factory | Loaded intel: 113 trap records 11895 | -6/Factory | Loaded intel: 208 non-interactive machine locations 11896 | -6/Factory | Loaded intel: 28 terminal locations 12112 | -6/Factory | Discovered new exit (range 7) 12113 | -6/Factory | Identified exit to Factory 12230 | -6/Factory | Discovered new exit (range 6) 12234 | -6/Factory | Identified exit to Lower Caves 12241 | -6/Factory | Search patrols dispatched 12382 | -6/Factory | Discovered exit to Factory (range 6) 12591 | -6/Factory | Search patrols dispatched 12598 | -6/Factory | Manually triggered Chute Trap 12598 | -6/Factory | Sucked down chute 12598 | -6/Factory | Entered Waste 12599 | -6/Waste | Met a frightened Derelict 12606 | -6/Waste | Spotted C-40 Crusher 12609 | -6/Waste | Spotted C-40 Crusher 12613 | -6/Waste | EMP discharged 12632 | -6/Waste | Spotted C-40 Crusher 12643 | -6/Waste | Spotted C-40 Crusher 12644 | -6/Waste | Spotted C-40 Crusher 12651 | -6/Waste | Spotted C-40 Crusher 12652 | -6/Waste | Discovered new exit (range 13) 12659 | -6/Waste | Identified exit to Factory 12660 | -6/Waste | Entered Factory 12913 | -6/Factory | Entered Extension 12913 | -6/Extension | Accompanied by 1 ally 12979 | -6/Extension | Repaired Imp. Propulsion Shielding? 13164 | -6/Extension | Rescued a captive Derelict 13182 | -6/Extension | Rescued a captive Derelict 13189 | -6/Extension | Rescued a captive Derelict 13230 | -6/Extension | Rescued a captive Derelict 13233 | -6/Extension | Rescued a captive Derelict 13348 | -6/Extension | Warlord forces began an assault 13498 | -6/Extension | Lost 6 allies 13542 | -6/Extension | Rescued A7 13585 | -6/Extension | Central database locked down 13782 | -6/Extension | Discovered exit to Factory (range 10) 13782 | -6/Extension | Discovered new exit (range 6) 13851 | -6/Extension | Identified exit to Cetus 13865 | -6/Extension | Entered Cetus 13865 | -6/Cetus | Accompanied by 15 allies (A7) 13870 | -6/Cetus | Acquired a Cetus Manufacturing Module code from A7 13895 | -6/Cetus | Spotted Cetus Guard 13897 | -6/Cetus | Spotted Cetus Guard 13898 | -6/Cetus | Spotted Cetus Guard 13900 | -6/Cetus | Spotted Cetus Guard 13919 | -6/Cetus | Allies destroyed Cetus Guard 13956 | -6/Cetus | Started Cetus Manufacturing Module 13958 | -6/Cetus | Lost 11 allies 13961 | -6/Cetus | Discovered new exit (range 15) 13981 | -6/Cetus | Manufactured an Enhanced Grunt 14006 | -6/Cetus | Manufactured an Enhanced Grunt 14031 | -6/Cetus | Manufactured an Enhanced Grunt 14056 | -6/Cetus | Manufactured an Enhanced Grunt 14081 | -6/Cetus | Manufactured an Enhanced Grunt 14091 | -6/Cetus | Spotted Cetus Guard 14105 | -6/Cetus | Spotted Cetus Guard 14105 | -6/Cetus | Spotted Cetus Guard 14105 | -6/Cetus | Spotted Cetus Guard 14109 | -6/Cetus | Allies destroyed Cetus Guard 14120 | -6/Cetus | Allies destroyed Cetus Guard 14126 | -6/Cetus | Allies destroyed Cetus Guard 14131 | -6/Cetus | Discovered exit to Factory (range 16) 14134 | -6/Cetus | Met Revision 17 14163 | -6/Cetus | Identified exit to Archives 14176 | -6/Cetus | Murdered A7 14179 | -6/Cetus | Extracted ID and sensor layout for unrecognized location from A7's data core 14209 | -6/Cetus | Entered Archives 14209 | -6/Archives | Accompanied by 6 allies 14260 | -6/Archives | Lost 3 allies 14284 | -6/Archives | Discovered new exit (range 13) 14293 | -6/Archives | Discovered new exit (range 16) 14597 | -6/Archives | Identified exit to Hub_04(d) 14626 | -6/Archives | Entered Hub_04(d) 14626 | -6/Hub_04(d) | Accompanied by 3 allies 14690 | -6/Hub_04(d) | Discovered exit to Factory (range 16) 14834 | -6/Hub_04(d) | Lost 3 allies 14918 | -6/Hub_04(d) | Discovered exit to Factory (range 16) 15189 | -6/Hub_04(d) | Entered Factory 15189 | -5/Factory | Evolved 2 slots: Utility x2 15190 | -5/Factory | Attached Power Bank, gained temporary slots: Power x3 15444 | -5/Factory | Identified exit to Upper Caves 15444 | -5/Factory | Identified exit to Factory 15590 | -5/Factory | Spotted B-75 Beast 15618 | -5/Factory | Fabricated Imp. Propulsion Shielding? 15650 | -5/Factory | System corruption reached 10% 15768 | -5/Factory | Build established: Hacker-Sprinter 15938 | -5/Factory | Sucked down chute 15938 | -5/Factory | Entered Waste 15939 | -5/Waste | Met a frightened Derelict 15949 | -5/Waste | Spotted C-40 Crusher 15972 | -5/Waste | Spotted C-40 Crusher 15973 | -5/Waste | Spotted C-40 Crusher 15974 | -5/Waste | Spotted C-40 Crusher 15978 | -5/Waste | Spotted C-40 Crusher 15981 | -5/Waste | Spotted C-40 Crusher 15987 | -5/Waste | Discovered new exit (range 14) 15991 | -5/Waste | Identified exit to Factory 15991 | -5/Waste | Entered Factory 16128 | -5/Factory | Repaired Centrium Medium Armor Plating? 16354 | -5/Factory | Discovered exit to Factory (range 16) 16562 | -5/Factory | Fabricated Tri-rail Accelerator? 16702 | -5/Factory | Fabricated Cld. Cesium-ion Thruster? 16773 | -5/Factory | Spotted B-75 Beast 16853 | -5/Factory | Entered Upper Caves 16915 | -5/Upper Caves | Encountered a Warlord checkpoint 17043 | -5/Upper Caves | Discovered new exit (range 8) 17045 | -5/Upper Caves | Identified exit to Upper Caves 17051 | -5/Upper Caves | Entered another Upper Caves area 17060 | -5/Upper Caves | Learned Factory trap positions 17090 | -5/Upper Caves | Learned location of Armory (-3) 17136 | -5/Upper Caves | Attracted the attention of an 0b10 outpost 17252 | -5/Upper Caves | Encountered a Warlord checkpoint 17260 | -5/Upper Caves | Discovered new exit (range 16) 17266 | -5/Upper Caves | Identified exit to Zhirov 17266 | -5/Upper Caves | Entered Zhirov 17266 | -5/Zhirov | Discovered new exit (range 4) 17267 | -5/Zhirov | Identified exit to Proximity Caves 17273 | -5/Zhirov | Met Zhirov 17279 | -5/Zhirov | Learned location of Quarantine (-2) 17279 | -5/Zhirov | Learned location of Testing (-3) 17279 | -5/Zhirov | Learned location of Command (-1) 17282 | -5/Zhirov | Zhirov requested help retrieving the SGEMP Prototype 17287 | -5/Zhirov | Found Alien Artifact 17287 | -5/Zhirov | Identified Integrated Dissipator 17287 | -5/Zhirov | Installed Integrated Dissipator, increased core heat dissipation (+20) 17351 | -5/Zhirov | Found Alien Artifact 17368 | -5/Zhirov | Entered Proximity Caves 17531 | -4/Proximity Caves | Discovered exit to Factory (range 13) 17567 | -4/Proximity Caves | Learned Research terminal intel 17572 | -4/Proximity Caves | Encountered a Derelict sapper outpost 17602 | -4/Proximity Caves | Learned Research garrison access intel 17640 | -4/Proximity Caves | Entered Factory 17640 | -4/Factory | Evolved 2 slots: Propulsion x1, Weapon x1 17641 | -4/Factory | Loaded intel: 82 trap records 17710 | -4/Factory | Identified exit to Research 17710 | -4/Factory | Identified exit to Upper Caves 17787 | -4/Factory | Found Unknown Launcher 17787 | -4/Factory | Identified Gamma Bomb Array 18331 | -4/Factory | Fabricated Cld. Cesium-ion Thruster? 18380 | -4/Factory | Entered Upper Caves 18425 | -4/Upper Caves | Entered an active Warlord outpost 18427 | -4/Upper Caves | Learned Extension stockpile data 18427 | -4/Upper Caves | Learned Armory terminal intel 18427 | -4/Upper Caves | Learned Armory garrison access intel 18470 | -4/Upper Caves | Discovered new exit (range 9) 18475 | -4/Upper Caves | Identified exit to Upper Caves 18547 | -4/Upper Caves | Entered another Upper Caves area 18548 | -4/Upper Caves | Identified exit to Warlord 18586 | -4/Upper Caves | Encountered a Warlord checkpoint 18675 | -4/Upper Caves | Entered Warlord 18685 | -4/Warlord | System corruption cleaned by Quarantine Array 18845 | -4/Warlord | Warlord's base attacked by MAIN.C 18874 | -4/Warlord | Found Prototype Energy Cannon 18875 | -4/Warlord | Identified Vortex Driver 18925 | -4/Warlord | Found Prototype Device 18925 | -4/Warlord | Identified Exp. Phase Shifter 18930 | -4/Warlord | Found Prototype Device 18930 | -4/Warlord | Identified Thermal Barrier 18938 | -4/Warlord | Found Prototype Hackware 18970 | -4/Warlord | Spotted B-90 Cyclops 19002 | -4/Warlord | Spotted B-86 Titan 19043 | -4/Warlord | Lost 3 allies 19049 | -4/Warlord | Warlord forces counterattacked 19145 | -4/Warlord | Spotted Executioner 19146 | -4/Warlord | Discovered new exit (range 12) 19148 | -4/Warlord | Identified exit to Proximity Caves 19149 | -4/Warlord | Entered Proximity Caves 19168 | -3/Proximity Caves | Lost 9 allies 19414 | -3/Proximity Caves | Discovered exit to Research (range 12) 19461 | -3/Proximity Caves | Entered Research 19461 | -3/Research | Evolved 2 slots: Propulsion x1, Utility x1 19462 | -3/Research | Loaded intel: 23 terminal locations 19462 | -3/Research | Identified System Mapper 19463 | -3/Research | Loaded intel: 4 garrison access locations 19528 | -3/Research | Identified exit to Armory 19528 | -3/Research | Identified exit to Testing 19564 | -3/Research | System Shield fried by hacking feedback 19661 | -3/Research | Revision forces began assault on 0b10 19900 | -3/Research | Met up with Revision 17++ 19978 | -3/Research | Lost 3 allies 20055 | -3/Research | Lost 3 allies 20087 | -3/Research | Found Prototype Processor 20091 | -3/Research | Identified Spectral Analyzer 20113 | -3/Research | Entered Testing 20151 | -3/Testing | Found Prototype Device 20151 | -3/Testing | Identified 2N-1CE's Frost Array 20320 | -3/Testing | Unchained authorized (DW-4LL) 20403 | -3/Testing | Found Prototype Hackware 20423 | -3/Testing | Found Hvy. Regenerative Plating 20441 | -3/Testing | Found Prototype Energy Cannon 20441 | -3/Testing | Identified Cld. Nova Cannon 20459 | -3/Testing | Identified Exp. Hacking Suite 20480 | -3/Testing | DW-4LL burst out of a wall 20504 | -3/Testing | Discovered new exit (range 15) 20508 | -3/Testing | Identified exit to Research 20508 | -3/Testing | Entered Research 20508 | -2/Research | Evolved 2 slots: Power x1, Utility x1 20515 | -2/Research | Identified exit to Quarantine 20666 | -2/Research | Fabricated Tri-rail Accelerator? 20679 | -2/Research | Identified Transdimensional Reconstructor 20679 | -2/Research | Warped through subspace 20977 | -2/Research | Entered Quarantine 20987 | -2/Quarantine | Central database locked down 21011 | -2/Quarantine | Cryocooling Duct disabled 21020 | -2/Quarantine | Found Alien Artifact 21026 | -2/Quarantine | Ambient heat levels rising (+20) 21026 | -2/Quarantine | Non-combat units ordered to evacuate 21190 | -2/Quarantine | Spotted Alpha 7 21307 | -2/Quarantine | Found Alien Artifact 21477 | -2/Quarantine | First assault squad dispatched 21498 | -2/Quarantine | Spotted Fortress 21516 | -2/Quarantine | Discovered new exit (range 6) 21516 | -2/Quarantine | Discovered new exit (range 7) 21517 | -2/Quarantine | Identified exit to Section 7 21518 | -2/Quarantine | Identified exit to Protoforge 21554 | -2/Quarantine | Entered Protoforge 21639 | -2/Protoforge | Spotted Hotshot 21639 | -2/Protoforge | Spotted Hotshot 21639 | -2/Protoforge | Spotted Hotshot 21666 | -2/Protoforge | Superfortress began startup sequence 21711 | -2/Protoforge | Spotted Decapitator 21711 | -2/Protoforge | Spotted Decapitator 21711 | -2/Protoforge | Spotted V326-y 21711 | -2/Protoforge | Spotted V692-m 21731 | -2/Protoforge | Found Prototype Ballistic Gun 21732 | -2/Protoforge | Identified Cep. XC Strikerail 21735 | -2/Protoforge | Found Cep. XC Strikerail 21739 | -2/Protoforge | Found Prototype Energy Gun 21739 | -2/Protoforge | Identified Cep. Lightning Penetrator 21742 | -2/Protoforge | Found Prototype Energy Cannon 21742 | -2/Protoforge | Identified Cep. Plasma Driver 21753 | -2/Protoforge | Destroyed Decapitator 21778 | -2/Protoforge | Identified exit to Garrison 21778 | -2/Protoforge | Entered Garrison 21806 | -2/Garrison | Spotted B-90 Cyclops 21809 | -2/Garrison | Triggered checkpoint 21810 | -2/Garrison | Identified Terrabomb 21810 | -2/Garrison | Used Terrabomb 21813 | -2/Garrison | Core integrity fell below 50% 21818 | -2/Garrison | Core integrity fell below 20% 21824 | -2/Garrison | Triggered checkpoint 21836 | -2/Garrison | Destroyed self with Smartbomb Launcher Last Messages --------------- 21809_ Slug penetrates Wall. 21809_ Garrison Door breached. 21809_ Beams of light sweep through the air. An alarm sounds. 21809_ Slug penetrates Wall. Garrison Door activated. 21810_ Penetrated by Slug. 21810_ Adv. Gravity Neutralizer destroyed. 21810_ Dropped Cld. Impulse Thruster. 21810_ Identified Terrabomb. 21810_ Terrabomb activated. 21811_ Dropped Med. Storage Unit. 21812_ Penetrated by Slug. 21814_ Slug penetrates G-73 Enforcer. 21817_ Penetrated by Slug. 21817_ Slug penetrates S-43 Plague. 21820_ Graphene Brace destroyed. 21824_ Beams of light sweep through the air. An alarm sounds. 21827_ System corrupted: Matter fused (-9). Map ----- +----------------------------------------------------+ | ????????????????????????????????????????????? | | ????????????????????????????????????????????? | | ????????????????????????????????????????????? | | ????????????????????????????????????????????? | | ????????????????????????????????????????????? | | ????????????????????????????????????????????? | | ????????????????????????????????????????????? | | ????????????????????????????????????????????? | | ????????????????????????????????????????????? | | ????????????????????????????????????????????? | | ????????????????????????????????????????????? | | ????????????????????????????????????????????? | | ????????????????????????????????????????????? | | ????????????????????????????????????????????? | | ????????????????????????????????????????????? | | ????????????????????????????????????????????? | | ??????????? ????????????????????????????????? | | ??????????? ##??????????????????????????????? | | ??????????? #??????????????????????????????? | | ?????????? #??????????????????????????????? | | ######????# #??????###?????????????????????? | | " " ##??# #?###?## ????????????????????? | | " " "#### #?# # ###?????????????????? | | " " " ## ### ## ##???????????????? | | """"" " " p #???????????????? | | # " ""/#### #######@ #???????????????? | | """"""" " " ## #????#"""""#??????????????? | | " "" " ## #????#######??????????????? | | " " " # #?????????????????????????? | | "" " " # #?????????????????????????? | | """""""""" """" #?????????????????????????? | | # " #?????????????????????????? | | """" """""""""" #!????????????????????????? | | " " " " ????????????????????? | | """" " """!!!!##???????????????????? | | / " "#####????????????????????? | | """" #????????????????????????? | | """"""" #????????????????????????? | | " " #????????????????????????? | | """"""" " #????????????????????????? | | ! """""""#"" #???????????????????????? | | ! " ##???????????????????????? | | " #????????????????????????? | | """"""" " #????????????????????????? | | """""""" " #????????????????????????? | | "" "" """"""""#????????????????????????? | | " # # ??????????????????????????? | | " " """"" #??????????????????????????? | | " " " # #??????????????????????????? | | "" "" " ??# #??????????????????????????? | +----------------------------------------------------+ Best States ------------- Heat Dissipation 69 Energy Generation 51 Energy Capacity 505 Matter Stores 300 Matter Capacity 300 Sight Range 16 Robot Scan Range 16 Terrain Scan Density 10 ECM Strength 2 Jamming Range 16 Cloak Strength 3 Additional Mass Support 16 Corruption Block 8 Armor Coverage 600 Resistance: TH 10 Core Shielding 20 Power Shielding 90 Propulsion Shielding 66 Evasion (%) 67 Targeting Accuracy 20 Core Analysis 6 Recoil Reduction 4 Offensive Hacking 50 Defensive Hacking 10 Authchip Count 1 Item Schematics ----------------- Imp. Propulsion Shielding | -8/Materials | Hacked Imp. Flight Unit | -8/Materials | Scanalyzed ECM Suite | -6/Extension | Hacked Weapon Mount | -6/Extension | Hacked EM Disruption Field | -6/Extension | Hacked Imp. Hacking Suite | -6/Extension | Hacked Cld. Cesium-ion Thruster | -5/Factory | Scanalyzed Cld. VTOL Module | -5/Factory | Scanalyzed Tri-rail Accelerator | -5/Factory | Hacked Assault Drone Bay | -5/Zhirov | Free Exp. Heat Sink | -5/Zhirov | Free Exp. Optical Array | -5/Zhirov | Free Imp. Arc Thrower | -5/Zhirov | Free Cld. Impulse Thruster | -3/Research | Scanalyzed Hvy. Regenerative Plating | -3/Testing | Hacked Mni. Smartbomb Launcher | -2/Research | Hacked Robot Schematics ------------------ None Fabricated ------------ Imp. Propulsion Shielding | x2 | -7/Factory | Authchip Imp. Propulsion Shielding | x2 | -5/Factory | Authchip Tri-rail Accelerator | x1 | -5/Factory | Authchip Cld. Cesium-ion Thruster | x1 | -5/Factory | Authchip Cld. Cesium-ion Thruster | x1 | -4/Factory | Authchip Tri-rail Accelerator | x1 | -2/Research Repaired ---------- Hvy. Armor Plating | 4% | -8/Materials Imp. Propulsion Shielding | 30% | -6/Extension Centrium Medium Armor Plating | 39% | -5/Factory Studied --------- Nuclear Pulse Thruster | -4/Factory | Hacked Impulse Thruster Array | -3/Research | Hacked Q-thruster | -3/Research | Hacked Lgt. Particle Reactor | -3/Research | Hacked Fusion Compressor | -3/Research | Hacked Smartbomb Launcher | -3/Research | Hacked Mic. Antimatter Reactor | -2/Quarantine | Hacked Alien Tech Used ----------------- Integrated Dissipator Transdimensional Reconstructor Terrabomb Achievements -------------- Definitely A Prototype I Laugh At Your Crits Let Me Out Of Here Look Less Dangerous Next Time Recruitment Drive Super-what Now? Well Done Challenges ------------ None Game ------ Seed ResetHoverProtection Manual? 0 Play Time 06:14:42 Cumulative 225.6 hours Start 2025.10.28 @ 23:02:15 End 2025.10.29 @ 22:35:28 Sessions 11 Manual Loads 0 Difficulty Rogue Special Mode None Game No. 66 Rogue 60 Adventurer 0 Explorer 6 Win Type - Total 12 Types 6/0/2/1/1/0/1/1/0/0 Lore% 77 Gallery% 69 Achievement% 48 Wizard Run 0 Options --------- Layout 1 ASCII 0 Keyboard 0 Movement Mouse Keybinds 0 Fullscreen 2 Font 24/Smallcaps Map View 50x35 Zoom Use 0% Tactical HUD 1 Map Filters NONE Filters NONE Steam 1 RUN: 56dcef6f-571e-427d-9475-bb51f79ddc53